{"text_format":"1","workbook":"xlsx","n_sheets":1,"sheets":["ИСХ"],"not_rendered":{"charts":0,"images":0,"macros":1,"external_links":0,"defined_names":0,"comments":0,"pivot_tables":0},"unopened":[],"bounds":{"document_bytes":16777216,"sheet_cells":100000,"rows_first":2000,"rows_last":500,"rows_between":2000,"halvings":0,"cell_chars":16384,"cell_head_chars":4096},"cells_cut":0,"cells_raw":0,"read":"whole","date_system":"1900"}

{"sheet":"ИСХ","index":0,"n_rows":2042,"n_cols":8,"rows_kept":2042,"cut":false,"hidden":false,"merged":[[0,0,0,1]]}
["Таблица 1",null,"Таблица 2"]
["Наименование","Стоимость","Наименование"]
["Кровать детская \"ARISTON Rovere\" (DUB)  NATURALE (натур) ",4,"Детская коляска люлька Inglesina Vittoria шасси Comfort",null,{"$f":" FindBestMatchTxt(C3, $A$3:$A$2042, 20%)","v":1822},{"$f":" TextSimilarity(C3, G3, , 1)","v":0.56557377049180324},{"$f":" IF( E3 > 0, INDEX($A$3:$A$2042, E3), \"-\" )","v":"KB10E1MAR Коляска Vittoria на шасси Comfort Chrome/Blu (AB10E1MAR+AE10E1000)"},{"$f":"INDEX(ИСХ!B$3:B$2042,MATCH(G3,ИСХ!A$3:A$2042,))","v":2469}]
["Кровать детская \"CHARME\"  AVORIO/ IVORY (сл. кость) ",10,"Коляска CAM Cortina Evolution X3 Tris 3 в 1",null,{"$f":" FindBestMatchTxt(C4, $A$3:$A$2042, 20%)","v":44},{"$f":" TextSimilarity(C4, G4, , 1)","v":0.81176470588235294},{"$f":" IF( E4 > 0, INDEX($A$3:$A$2042, E4), \"-\" )","v":"  Коляска \"Cortina Evolution x3 tris\"арт. 769 (без переноски)"},{"$f":"INDEX(ИСХ!B$3:B$2042,MATCH(G4,ИСХ!A$3:A$2042,))","v":64}]
["Кровать детская \"CHARME\"  BIANCO/WHITE (белая)",11,"Коляска прогулочная Peg-Perego Si Completo",null,{"$f":" FindBestMatchTxt(C5, $A$3:$A$2042, 20%)","v":1936},0.6428571428571429,{"$f":" IF( E5 > 0, INDEX($A$3:$A$2042, E5), \"-\" )","v":"04 061217 990 000 Коляска прогулочная Ct 0.6  Jasper"},{"$f":"INDEX(ИСХ!B$3:B$2042,MATCH(G5,ИСХ!A$3:A$2042,))","v":2583}]
["Кровать детская \"CHARME\"  GRIGIO/ CHIACCO- ICE GRAY (серебристая)",13,"Детская кроватка Pali Ciak",null,{"$f":" FindBestMatchTxt(C6, $A$3:$A$2042, 20%)","v":934},0.70588235294117652,{"$f":" IF( E6 > 0, INDEX($A$3:$A$2042, E6), \"-\" )","v":"Кроватка детская VITALIA 125/65 МАЯТНИК НК (Белый)"},{"$f":"INDEX(ИСХ!B$3:B$2042,MATCH(G6,ИСХ!A$3:A$2042,))","v":1581}]
["Кровать детская \" CHATON\" AVORIO/ IVORY (сл. кость) ",14,"Стульчик для кормления Peg-Perego Tatamia",null,{"$f":" FindBestMatchTxt(C7, $A$3:$A$2042, 20%)","v":1124},0.58620689655172409,{"$f":" IF( E7 > 0, INDEX($A$3:$A$2042, E7), \"-\" )","v":"Стульчик для кормления B-CHAIR красный"},{"$f":"INDEX(ИСХ!B$3:B$2042,MATCH(G7,ИСХ!A$3:A$2042,))","v":1771}]
["Кровать детская \" CHATON\" BIANCO/ WHITE (белая) ",21,"Детская кроватка Pali Capriccio (продольный маятник)",null,{"$f":" FindBestMatchTxt(C8, $A$3:$A$2042, 20%)","v":271},0.70434782608695656,{"$f":" IF( E8 > 0, INDEX($A$3:$A$2042, E8), \"-\" )","v":"К 2005-4 Кровать детская \"Анжелика\" /орех/продольный маятник/"},{"$f":"INDEX(ИСХ!B$3:B$2042,MATCH(G8,ИСХ!A$3:A$2042,))","v":918}]
["Кровать детская \"DESIRE\" AVORIO/ IVORY (сл. кость) ",23,"Прогулочная коляска Peg-Perego Book Plus Completo",null,{"$f":" FindBestMatchTxt(C9, $A$3:$A$2042, 20%)","v":1936},0.57446808510638303,{"$f":" IF( E9 > 0, INDEX($A$3:$A$2042, E9), \"-\" )","v":"04 061217 990 000 Коляска прогулочная Ct 0.6  Jasper"},{"$f":"INDEX(ИСХ!B$3:B$2042,MATCH(G9,ИСХ!A$3:A$2042,))","v":2583}]
["Кровать детская \"DESIRE\" BIANCO/ WHITE (белая) ",24,"Прогулочная коляска Bumbleride Indie",null,{"$f":" FindBestMatchTxt(C10, $A$3:$A$2042, 20%)","v":1935},0.65384615384615385,{"$f":" IF( E10 > 0, INDEX($A$3:$A$2042, E10), \"-\" )","v":"04 061217 160 000 Коляска прогулочная Ct 0.6 Jade"},{"$f":"INDEX(ИСХ!B$3:B$2042,MATCH(G10,ИСХ!A$3:A$2042,))","v":2582}]
["Кровать детская \"DESIRE\" GRIGIO/ CHIACCO- ICE GRAY (серебристая) ",27,"Колыбель Geuther Lena",null,{"$f":" FindBestMatchTxt(C11, $A$3:$A$2042, 20%)","v":1448},0.51219512195121952,{"$f":" IF( E11 > 0, INDEX($A$3:$A$2042, E11), \"-\" )","v":"Колыбель 3046 HAN"},{"$f":"INDEX(ИСХ!B$3:B$2042,MATCH(G11,ИСХ!A$3:A$2042,))","v":2095}]
["Кровать детская \"ELEGANCE DONDOLO\" AVORIO/ IVORY (сл. кость) ",28,"Колыбель Geuther Anika",null,{"$f":" FindBestMatchTxt(C12, $A$3:$A$2042, 20%)","v":1448},0.55813953488372092,{"$f":" IF( E12 > 0, INDEX($A$3:$A$2042, E12), \"-\" )","v":"Колыбель 3046 HAN"},{"$f":"INDEX(ИСХ!B$3:B$2042,MATCH(G12,ИСХ!A$3:A$2042,))","v":2095}]
["Кровать детская \"ELEGANCE DONDOLO\" BIANCO/ WHITE (белая) ",29,"Колыбель Geuther Aladin",null,{"$f":" FindBestMatchTxt(C13, $A$3:$A$2042, 20%)","v":1448},0.46666666666666667,{"$f":" IF( E13 > 0, INDEX($A$3:$A$2042, E13), \"-\" )","v":"Колыбель 3046 HAN"},{"$f":"INDEX(ИСХ!B$3:B$2042,MATCH(G13,ИСХ!A$3:A$2042,))","v":2095}]
["Кровать детская \"ELEGANCE DONDOLO\" GRIGIO/ CHIACCO- ICE GRAY (серебристая)",30,"Колыбель Giovanni Elite 4 в 1 (продольный маятник)",null,{"$f":" FindBestMatchTxt(C14, $A$3:$A$2042, 20%)","v":763},0.59340659340659341,{"$f":" IF( E14 > 0, INDEX($A$3:$A$2042, E14), \"-\" )","v":"АБ 19.3 \"Жасмин\" продольный маятник/ белый"},{"$f":"INDEX(ИСХ!B$3:B$2042,MATCH(G14,ИСХ!A$3:A$2042,))","v":1410}]
["Кровать детская \"ELEGANCE DONDOLO\" NOCE/ WALNUT\" (темн) ",31,"Колыбель Pali Baby Baby",null,{"$f":" FindBestMatchTxt(C15, $A$3:$A$2042, 20%)","v":1448},0.51219512195121952,{"$f":" IF( E15 > 0, INDEX($A$3:$A$2042, E15), \"-\" )","v":"Колыбель 3046 HAN"},{"$f":"INDEX(ИСХ!B$3:B$2042,MATCH(G15,ИСХ!A$3:A$2042,))","v":2095}]
["Кровать детская \"ELITE\" AVORIO/ IVORY (сл. кость) ",32,"Люлька-переноска Picci Alina",null,{"$f":" FindBestMatchTxt(C16, $A$3:$A$2042, 20%)","v":1943},0.66176470588235292,{"$f":" IF( E16 > 0, INDEX($A$3:$A$2042, E16), \"-\" )","v":"06 079281 950 000 Люлька-переноска Chicco Polar Black"},{"$f":"INDEX(ИСХ!B$3:B$2042,MATCH(G16,ИСХ!A$3:A$2042,))","v":2590}]
["Кровать детская \"ELITE\" BIANCO/ WHITE (белая)",34,"Колыбелька Picci Alina с балдахином",null,{"$f":" FindBestMatchTxt(C17, $A$3:$A$2042, 20%)","v":1446},0.41095890410958902,{"$f":" IF( E17 > 0, INDEX($A$3:$A$2042, E17), \"-\" )","v":"Колыбель -качалка \"Eiite\" 4 в 1 Satin"},{"$f":"INDEX(ИСХ!B$3:B$2042,MATCH(G17,ИСХ!A$3:A$2042,))","v":2093}]
["Кровать детская \"ENCHANT DONDOLO\"  BIANCO/WHITE (белая)",35,"Колыбель с капюшоном Picci Champagne",null,{"$f":" FindBestMatchTxt(C18, $A$3:$A$2042, 20%)","v":1448},0.38095238095238093,{"$f":" IF( E18 > 0, INDEX($A$3:$A$2042, E18), \"-\" )","v":"Колыбель 3046 HAN"},{"$f":"INDEX(ИСХ!B$3:B$2042,MATCH(G18,ИСХ!A$3:A$2042,))","v":2095}]
["Кровать детская \"ENCHANT DONDOLO\" AVORIO/ IVORY (сл. кость) ",37,"Колыбелька Picci Diamante с капюшоном",null,{"$f":" FindBestMatchTxt(C19, $A$3:$A$2042, 20%)","v":1648},0.43421052631578949,{"$f":" IF( E19 > 0, INDEX($A$3:$A$2042, E19), \"-\" )","v":"Коляска Plico Mini (Diamante)"},{"$f":"INDEX(ИСХ!B$3:B$2042,MATCH(G19,ИСХ!A$3:A$2042,))","v":2295}]
["Кровать детская \"ENCHANT DONDOLO\" NOCE SCURO/ DARK WALNUT ( тем. орех) ",38,"Колыбелька Picci Champagne Pincesse",null,{"$f":" FindBestMatchTxt(C20, $A$3:$A$2042, 20%)","v":1448},0.36923076923076925,{"$f":" IF( E20 > 0, INDEX($A$3:$A$2042, E20), \"-\" )","v":"Колыбель 3046 HAN"},{"$f":"INDEX(ИСХ!B$3:B$2042,MATCH(G20,ИСХ!A$3:A$2042,))","v":2095}]
["Кровать детская \"ENCHANT\" AVORIO/ IVORY (сл. кость)",39,"Колыбель с балдахином Picci Champagne",null,{"$f":" FindBestMatchTxt(C21, $A$3:$A$2042, 20%)","v":1448},0.36923076923076925,{"$f":" IF( E21 > 0, INDEX($A$3:$A$2042, E21), \"-\" )","v":"Колыбель 3046 HAN"},{"$f":"INDEX(ИСХ!B$3:B$2042,MATCH(G21,ИСХ!A$3:A$2042,))","v":2095}]
["Кровать детская \"ENCHANT\" BIANCO/ WHITE (белая)",40]
["Кровать детская \"ENCHANT\" NOCE SCURO/ DARK WALNUT ( тем. орех) ",41]
["Кровать детская \"ETOILE BLISS\" GRIGIO/ CHIACCIO- ICE GRAY (серебристая) ",42]
["Кровать детская \"ETOILE D' ARGENT\" BIANCO/ WHITE (белая) ",43]
["Кровать детская \"ETOILE D' OR\" AVORIO/IVORY (сл. кость) ",44]
["Кровать детская \"LUXOR\" AVORIO/ IVORY (сл. кость) ",45]
["Кровать детская \"LUXOR\" BIANCO/ WHITE (белая)",46]
["Кровать детская  \"MON AMOUR\"AVORIO/ IVORY (сл. кость)",47]
["Кровать детская  \"MON AMOUR\"BIANCO/WHITE (белая) ",48]
["Кровать детская  \"PREMIERE\" BIANCO/WHITE (белая) ",49]
["Кровать детская  \"PREMIERE\" NOCE/ WALNUT (темн)",50]
["Кровать детская \"PRIVILEGE\" AVORIO/ IVORY (сл. кость)",51]
["Кровать детская \"PRIVILEGE\" BIANCO/ WHITE (белая)",52]
["Кровать детская  \"RICORDO DONDOLO\" AVORIO/ IVORY (сл. кость) ",53]
["Кровать детская  \"RICORDO DONDOLO\" NOCE/ WALNUT (темн)",54]
["Кровать детская  \"RICORDO\" BIANCO/ WHITE (белая) ",55]
["Кровать детская \"ROMANCE\" AVORIO/ IVORY (сл. кость) ",56]
["Кровать детская \"ROMANCE\" BIANCO/WHITE (белая) ",57]
["Кровать детская  \"SAUVAGE\" AVORIO/ IVORY (сл. кость)",58]
["Кровать детская  \"SAUVAGE\" BIANCO/ WHITE (белая)",59]
["Кровать детская  \"SAUVAGE\" NOCE/ WALNUT (темн)",60]
["Кровать детская \" VELVET\" AVORIO/ IVORY (сл. кость)",61]
["Кровать детская \" VELVET\" BIANCO/ WHITE (белая)",62]
["Кровать детская \" VELVET\" PANDA",63]
["  Коляска \"Cortina Evolution x3 tris\"арт. 769 (без переноски)",64]
[" Коляска  прогулочная  \"PORTOFINO\"  зеленая/серая 822.276",65]
[" Коляска  прогулочная  \"PORTOFINO\"  красно/черная 822.278",66]
["Коляска  \"PORTOFINO\" 284",67]
["Коляска ЭВО комби",68]
["Стул \"Кампионе\", арт. С122/С4 голубой",69]
["Коляски Brevi OVO 239",70]
["Коляска  X-Lander X-A   green",71]
["Люлька  X-Lander 2009 blue / голубой",72]
["Люлька  X-Lander blue",73]
["Люлька  X-Lander зеленый",74]
["Подушка Пуфи",75]
["С 64 Комплект в кроватку \" ПАСЕЧНИК \" розовый",76]
["С 68 ( 1:0 ) Комплект в кроватку \" Соня \" бежево/розовый",77]
["С 68 ( 1:0 ) Комплект в кроватку \" Соня \" салатно/оранжевый/",78]
["С 68 Комплект в кроватку \" Соня \" /салатовый/",79]
["КДП 80/4-01  Комод с трансфор. крышкой ЗАЙКА клён",707]
["КДП 80/4-01  Комод с трансфор. крышкой ЗАЙКА орех",708]
["КДП 80/4-03  Комод с трансфор. крышкой ПАНДЫ венге",709]
["КДП 80/4-03  Комод с трансфор. крышкой ПАНДЫ клен",710]
["КДП 80/4-03  Комод с трансфор. крышкой ПАНДЫ орех",711]
["КДП 80/4-04  Комод с трансфор. крышкой БЕЛОЧКА орех",712]
["КДП 80/4-05  Комод с трансфор. крышкой ТИГРЫ венге",713]
["КДП 80/4-05  Комод с трансфор. крышкой ТИГРЫ клен",714]
["КДП 80/4-05  Комод с трансфор. крышкой ТИГРЫ орех",715]
["КДП 80/4-06  Комод с трансфор. крышкой МИШКА орех",716]
["КДП 80/4-07  Комод с трансфор. крышкой КОТЁНОК клён",717]
["КДП 80/4-07  Комод с трансфор. крышкой КОТЁНОК орех",718]
["КДП 80/4-08  Комод с трансфор. крышкой СОБАЧКА клён",719]
["КДП 80/4-09  Комод с трансфор. крышкой АНГЕЛОЧЕК new орех",720]
["КДП 80/4-10  Комод с трансфор. крышкой СЛОНЁНОК венге",721]
["КДП 80/4-10  Комод с трансфор. крышкой СЛОНЁНОК клен",722]
["КДП 80/4-11  Комод с трансфор. крышкой КРОТ с друзьями венге",723]
["КДП 80/4-11  Комод с трансфор. крышкой КРОТ с друзьями клен",724]
["КДП 80/4-11  Комод с трансфор. крышкой КРОТ с друзьями орех",725]
["КДП 80/4-12  Комод с трансфор. крышкой АНГЕЛЫ клен",726]
["КДП 80/4-13  Комод с трансфор. крышкой КИТТИ пикник клён",727]
["КДП 80/4-13  Комод с трансфор. крышкой КИТТИ пикник орех",728]
["КМА (КМП)  Комод с трансфор. крышкой ЗАЙКА клён",729]
["КМА (КМП) 80/4-03  Комод с трансфор. крышкой ПАНДЫ орех",730]
["КМА (КМП) 80/4-04  Комод с трансфор. крышкой БЕЛОЧКА клён",731]
["КМА (КМП) 80/4-05  Комод с трансфор. крышкой ТИГРЫ венге",732]
["КМА (КМП) 80/4-08  Комод с трансфор. крышкой СОБАЧКА орех",733]
["КМА (КМП) 80/4-12  Комод с трансфор. крышкой АНГЕЛЫ орех",734]
["КМА (КМП) 80/4-13  Комод с трансфор. крышкой КИТТИ пикник орех",735]
["КМА (КМП) 80/4-14  Комод с трансфор. крышкой КИТТИ цветы орех",736]
["КМА (КМП) 80/4-35  Комод с трансфор. крышкой КАПУСТА клён",737]
["КМА (КМП) 80/4-35  Комод с трансфор. крышкой КАПУСТА орех",738]
["КМП 80/4-16 Комод с трансфор. крышкой КОТ в сапогах /орех",739]
["КДП 80/4-101 Комод с трансфор.крышкой 4 ящ. \"Бьянка\" венге",740]
["КДП 80/4-101 Комод с трансфор.крышкой 4 ящ.\"Бьянка\" клен",741]
["КДП 80/4-101 Комод с трансфор.крышкой 4 ящ.\"Бьянка\" орех",742]
["КДП 80/5-101 Комод с трансфор.крышкой 5 ящ. \"Бьянка\" венге",743]
["КДП 80/5-101 Комод с трансфор.крышкой 5 ящ. \"Бьянка\" клен",744]
["КДП 80/5-101 Комод с трансфор.крышкой 5 ящ. \"Бьянка\" орех",745]
["КРДП-101 Кроватка с поперечным качанием ЛДСП \"Бьянка\" венге НОВИНКА",746]
["КРДП-101 Кроватка с поперечным качанием ЛДСП \"Бьянка\" клен НОВИНКА",747]
["КРДП-101 Кроватка с поперечным качанием ЛДСП \"Бьянка\" орех НОВИНКА",748]
["КРДПР-101 Кроватка с продольным качанием ЛДСП \"Бьянка\" венге",749]
["КРДПР-101 Кроватка с продольным качанием ЛДСП \"Бьянка\" клен",750]
["КРДПР-101 Кроватка с продольным качанием ЛДСП \"Бьянка\" сосна",751]
["КТДП-101 Кровать-трансформер \"Бьянка\" венге",752]
["КТДП-101 Кровать-трансформер \"Бьянка\" клен",753]
["КТДП-101 Кровать-трансформер \"Бьянка\" орех",754]
["ПДП 80/1-100 \"Бьянка\" орех",755]
["ТДП 60-101 Тумба под игрушки \"Бьянка\" венге",756]
["ТДП 60-101 Тумба под игрушки \"Бьянка\" клен",757]
["ТДП 60-101 Тумба под игрушки \"Бьянка\" орех",758]
["ШДП 80/1-101 Шкаф для одежды с рисунком \"Бьянка\" венге",759]
["ШДП 80/1-101 Шкаф для одежды с рисунком \"Бьянка\" клен",760]
["ШДП 80/1-101 Шкаф для одежды с рисунком \"Бьянка\" орех",761]
["КДП 80/4-102 Комод с трансфор.крышкой 4 ящ. \"Меандр\"(золото) венге",762]
["КДП 80/4-102 Комод с трансфор.крышкой 4 ящ. \"Меандр\"(золото) клен",763]
["КДП 80/4-102 Комод с трансфор.крышкой 4 ящ. \"Меандр\"(золото) орех",764]
["КДП 80/5-102 Комод с трансфор.крышкой 5 ящ.\"Меандр\"(золото) венге",765]
["КДП 80/5-102 Комод с трансфор.крышкой 5 ящ.\"Меандр\"(золото) клен",766]
["КДП 80/5-102 Комод с трансфор.крышкой 5 ящ.\"Меандр\"(золото) орех",767]
["КРДПР-102 Кроватка с продольным качанием ЛДСП \"Меандр\"(золото) венге",768]
["КРДПР-102 Кроватка с продольным качанием ЛДСП \"Меандр\"(золото) клен",769]
["КРДПР-102 Кроватка с продольным качанием ЛДСП \"Меандр\"(золото) орех",770]
["КРДПР-102 Кроватка с продольным качанием ЛДСП \"Меандр\"(золото) сосна",771]
["КТДП-102 Кровать-трансформер \"Меандр\"(золото) венге",772]
["КТДП-102 Кровать-трансформер \"Меандр\"(золото) клен",773]
["КТДП-102 Кровать-трансформер \"Меандр\"(золото) орех",774]
["ПДП 80/1-102 \"Меандр\"(золото) венге",775]
["ПДП 80/1-102 \"Меандр\"(золото) клен",776]
["ПДП 80/1-102 \"Меандр\"(золото) орех",777]
["ТДП 60-102 Тумба под игрушки \"Меандр\"(золото) венге",778]
["ТДП 60-102 Тумба под игрушки \"Меандр\"(золото) клен",779]
["ТДП 60-102 Тумба под игрушки \"Меандр\"(золото) орех",780]
["ШДП 80/1-102 Шкаф для одежды с рисунком \"Меандр\"(золото) венге",781]
["ШДП 80/1-102 Шкаф для одежды с рисунком \"Меандр\"(золото) клен",782]
["ШДП 80/1-102 Шкаф для одежды с рисунком \"Меандр\"(золото) орех",783]
["КДП 80/4-102 Комод с трансфор.крышкой 4 ящ. \"Меандр\"(серебро) венге",784]
["КДП 80/4-102 Комод с трансфор.крышкой 4 ящ. \"Меандр\"(серебро) клен",785]
["КДП 80/4-102 Комод с трансфор.крышкой 4 ящ. \"Меандр\"(серебро) орех",786]
["КДП 80/5-102 Комод с трансфор.крышкой 5 ящ. \"Меандр\"(серебро) клен",787]
["КДП 80/5-102 Комод с трансфор.крышкой 5 ящ. \"Меандр\"(серебро) орех",788]
["КРДПР-102 Кроватка с продольным качанием ЛДСП \"Меандр\"(серебро) венге",789]
["КРДПР-102 Кроватка с продольным качанием ЛДСП \"Меандр\"(серебро) клен",790]
["КРДПР-102 Кроватка с продольным качанием ЛДСП \"Меандр\"(серебро) орех",791]
["КРДПР-102 Кроватка с продольным качанием ЛДСП \"Меандр\"(серебро) сосна",792]
["КТДП-102 Кровать-трансформер \"Меандр\"(серебро) клен",793]
["ПДП 80/1-102 \"Меандр\"(серебро) венге",794]
["ПДП 80/1-102 \"Меандр\"(серебро) орех",795]
["ПДП 80/1-102 \"Меандр\"(серебро)клен",796]
["ТДП 60-102 Тумба под игрушки \"Меандр\"(серебро) венге",797]
["ТДП 60-102 Тумба под игрушки \"Меандр\"(серебро) клен",798]
["ТДП 60-102 Тумба под игрушки \"Меандр\"(серебро) орех",799]
["ШДП 80/1-102 Шкаф для одежды с рисунком \"Меандр\"(серебро) клен",800]
["КДП 80/4-102 Комод с трансфор.крышкой 4 ящ. \"Меандр\"(фисташка) венге",801]
["КДП 80/4-102 Комод с трансфор.крышкой 4 ящ. \"Меандр\"(фисташка) клен",802]
["КДП 80/4-102 Комод с трансфор.крышкой 4 ящ. \"Меандр\"(фисташка) орех",803]
["КДП 80/5-102 Комод с трансфор.крышкой 5ящ. \"Меандр\"(фисташка) венге",804]
["КДП 80/5-102 Комод с трансфор.крышкой 5ящ. \"Меандр\"(фисташка) клен",805]
["КДП 80/5-102 Комод с трансфор.крышкой 5ящ. \"Меандр\"(фисташка) орех",806]
["КРДПР-102 Кроватка с продольным качанием ЛДСП \"Меандр\"(фисташка) венге",807]
["КРДПР-102 Кроватка с продольным качанием ЛДСП \"Меандр\"(фисташка) клен",808]
["КРДПР-102 Кроватка с продольным качанием ЛДСП \"Меандр\"(фисташка) орех",809]
["КРДПР-102 Кроватка с продольным качанием ЛДСП \"Меандр\"(фисташка) сосна",810]
["КТДП-102 Кровать-трансформер \"Меандр\"(фисташка) венге",811]
["КТДП-102 Кровать-трансформер \"Меандр\"(фисташка) клен",812]
["КТДП-102 Кровать-трансформер \"Меандр\"(фисташка) орех",813]
["ПДП 80/1-102 \"Меандр\"(фисташка) венге",814]
["ПДП 80/1-102 \"Меандр\"(фисташка) клен",815]
["ПДП 80/1-102 \"Меандр\"(фисташка) орех",816]
["ТДП 60-102 Тумба под игрушки \"Меандр\"(фисташка) венге",817]
["ТДП 60-102 Тумба под игрушки \"Меандр\"(фисташка) клен",818]
["ТДП 60-102 Тумба под игрушки \"Меандр\"(фисташка) орех",819]
["ШДП 80/1-102 Шкаф для одежды с рисунком \"Меандр\"(фисташка) венге",820]
["ШДП 80/1-102 Шкаф для одежды с рисунком \"Меандр\"(фисташка) клен",821]
["ШДП 80/1-102 Шкаф для одежды с рисунком \"Меандр\"(фисташка) орех",822]
["КДП 80/4-100 Комод с трансфор.крышкой 4 ящ. Роза клен",823]
["КДП 80/4-100 Комод с трансфор.крышкой 4 ящ. Роза орех",824]
["КДП 80/5-100 Комод с трансфор.крышкой 5 ящ. Роза клен",825]
["КРДПР-100 Кроватка с продольным качанием ЛДСП \"Розы\" венге",826]
["КРДПР-100 Кроватка с продольным качанием ЛДСП \"Розы\" клен",827]
["КРДПР-100 Кроватка с продольным качанием ЛДСП \"Розы\" орех",828]
["КТДП-100 Кровать-трансформер \"Розы\" клен",829]
["КТДП-100 Кровать-трансформер \"Розы\" орех",830]
["ПДП 80/1-100 \"Розы\" венге",831]
["ПДП 80/1-100 \"Розы\" клен",832]
["ПДП 80/1-100 \"Розы\" орех",833]
["ТДП 60-100 Тумба под игрушки \"Розы\" клен",834]
["ШДП 80/1-100 Шкаф для одежды с рисунком \"Розы\" клен",835]
["КДП 80/4-103 Комод с трансфор.крышкой 4 ящ. \"Франческо-1\" венге",836]
["КДП 80/4-103 Комод с трансфор.крышкой 4 ящ. \"Франческо-1\" клен",837]
["КДП 80/5-104 Комод с трансфор.крышкой 5 ящ. \"Франческо-2\" венге",838]
["КДП 80/5-104 Комод с трансфор.крышкой 5 ящ. \"Франческо-2\" клен",839]
["КДП 80/5-104 Комод с трансфор.крышкой 5 ящ. \"Франческо-2\" орех",840]
["КРДП-103 Кроватка с поперечным качанием ЛДСП \"Франческо\" венге НОВИНКА",841]
["КРДП-103 Кроватка с поперечным качанием ЛДСП \"Франческо\" клен НОВИНКА",842]
["КРДП-103 Кроватка с поперечным качанием ЛДСП \"Франческо\" орех НОВИНКА",843]
["КРДПР-103 Кроватка с продольным качанием ЛДСП \"Франческо\" венге",844]
["КРДПР-103 Кроватка с продольным качанием ЛДСП \"Франческо\" орех",845]
["КТДП-103 Кровать-трансформер \"Франческо-1\" венге",846]
["КТДП-103 Кровать-трансформер \"Франческо-1\" клен",847]
["КТДП-103 Кровать-трансформер \"Франческо-1\" орех",848]
["ПДП 80/1-103 \"Франческо-1\" венге",849]
["ПДП 80/1-103 \"Франческо-1\" клен",850]
["ПДП 80/1-103 \"Франческо-1\" орех",851]
["ПДП 80/1-104 \"Франческо-2\" венге",852]
["ПДП 80/1-104 \"Франческо-2\" клен",853]
["ПДП 80/1-104 \"Франческо-2\" орех",854]
["ТДП 60-103 Тумба под игрушки \"Франческо-1\" венге",855]
["ТДП 60-103 Тумба под игрушки \"Франческо-1\" клен",856]
["ШДП 80/1-104 Шкаф для одежды с рисунком \"Франческо-2\" венге",857]
["ШДП 80/1-104 Шкаф для одежды с рисунком \"Франческо-2\" клен",858]
["ШДП 80/1-104 Шкаф для одежды с рисунком \"Франческо-2\" орех",859]
["ШДП 80/1-09 Шкаф для одежды с рисунком АНГЕЛОЧКИ new клён",860]
["ШДП 80/1-10 Шкаф для одежды с рисунком СЛОНЕНОК клен",861]
["ШДП 80/1-11 Шкаф для одежды с рисунком ЗООПАРК венге",862]
["ШДП 80/1-11 Шкаф для одежды с рисунком ЗООПАРК клён",863]
["ШДП 80/1-11 Шкаф для одежды с рисунком ЗООПАРК орех",864]
["ШДП 80/1-13 Шкаф для одежды с рисунком Китти пикник клен",865]
["ШДП 80/1-13 Шкаф для одежды с рисунком Китти пикник орех",866]
["ШДП 80/1-14 Шкаф для одежды с рисунком Китти цветы клён",867]
["ШДП 80/1-35 Шкаф для одежды с рисунком капуста орех",868]
["ШМА(ШМП)80/1-11 Шкаф для одежды с рисунком ЗООПАРК орех",869]
["ШМА(ШМП)80/1-14 Шкаф для одежды с рисунком КИТТИ цветы орех",870]
["ШМА(ШМП)80/1-15 Шкаф для одежды с рисунком КИТТИ игра клён",871]
["ШМА(ШМП)80/1-15 Шкаф для одежды с рисунком КИТТИ игра орех",872]
["ШМП 80/1-09 Шкаф для одежды с рисунком АНГЕЛОЧКИ new клён",873]
["КО 2003-1 Комод детский \"Аистёнок mini \" /белый/",874]
["КО 2003-1 Комод детский \"Аистёнок mini \" /вишня/",875]
["КО 2003-1 Комод детский \"Аистёнок mini \" /махагон/",876]
["КО 2003-1 Комод детский \"Аистёнок mini \" /натур/",877]
["КО 2003-1 Комод детский \"Аистёнок mini \" /орех/",878]
["КО 2003-1 Комод детский \"Аистёнок mini \" /слон/",879]
["КО 2003-1 Комод детский \"Аистёнок \"mini Люкс /белый/",880]
["КО 2003-1 Комод детский \"Аистёнок \"mini Люкс /вишня/",881]
["КО 2003-1 Комод детский \"Аистёнок \"mini Люкс /махагон/",882]
["КО 2003-1 Комод детский \"Аистёнок \"mini Люкс /натур/",883]
["КО 2003-1 Комод детский \"Аистёнок \"mini Люкс /орех/",884]
["КО 2003-1 Комод детский \"Аистёнок \"mini Люкс /сл. кость/",885]
["КО 2003-1 Комод детский \"Аистёнок\" /белый/",886]
["КО 2003-1 Комод детский \"Аистёнок\" /вишня/",887]
["КО 2003-1 Комод детский \"Аистёнок\" /махагон/",888]
["КО 2003-1 Комод детский \"Аистёнок\" /натур/",889]
["КО 2003-1 Комод детский \"Аистёнок\" /орех/",890]
["КО 2003-1 Комод детский \"Аистёнок\" /слон. кость/",891]
["КО 2003-4 Комод детский \"Александра\" /белый/",892]
["КО 2003-4 Комод детский \"Александра\" /вишня/",893]
["КО 2003-4 Комод детский \"Александра\" /махагон/",894]
["КО 2003-4 Комод детский \"Александра\" /натур/",895]
["КО 2003-4 Комод детский \"Александра\" /орех/",896]
["КО 2003-4 Комод детский \"Александра\" /слон. кость/",897]
["К 2005-3 Кровать детская \"Альбина\" /вишня/",898]
["К 2005-3 Кровать детская \"Альбина\" /натур/",899]
["К 2005-3 Кровать детская \"Альбина\" /слон.кость/",900]
["К2004-1 Кровать детская \"Анастасия\"/маятник/белый/",901]
["К2004-1 Кровать детская \"Анастасия\"/маятник/вишня/",902]
["К2004-1 Кровать детская \"Анастасия\"/маятник/махагон/",903]
["К2004-1 Кровать детская \"Анастасия\"/маятник/натур/",904]
["К2004-1 Кровать детская \"Анастасия\"/маятник/орех",905]
["К2004-1 Кровать детская \"Анастасия\"/маятник/слон. кость/",906]
["К 2005-1 Кровать детская \"Анжелика\" /белая/",907]
["К 2005-1 Кровать детская \"Анжелика\" /вишня/",908]
["К 2005-1 Кровать детская \"Анжелика\" /махагон/",909]
["К 2005-1 Кровать детская \"Анжелика\" /натур/",910]
["К 2005-1 Кровать детская \"Анжелика\" /орех/",911]
["К 2005-1 Кровать детская \"Анжелика\" /слоновая кость/",912]
["К 2005-4 Кровать детская \"Анжелика\" /натур/поперечный маятник",913]
["К 2005-4 Кровать детская \"Анжелика\" /белый/продольный маятник/",914]
["К 2005-4 Кровать детская \"Анжелика\" /вишня/продольный маятник/",915]
["К 2005-4 Кровать детская \"Анжелика\" /махагон/продольный маятник/",916]
["К 2005-4 Кровать детская \"Анжелика\" /натур/продольный маятник/",917]
["К 2005-4 Кровать детская \"Анжелика\" /орех/продольный маятник/",918]
["К 2005-4 Кровать детская \"Анжелика\" /сл. кость/прод.маятник/",919]
["Комод детский Ко 2012-1 Арландо (белый)",920]
["Комод детский Ко 2012-1 Арландо (вишня)",921]
["Комод детский Ко 2012-1 Арландо (махагон)",922]
["Комод детский Ко 2012-1 Арландо (натур)",923]
["Комод детский Ко 2012-1 Арландо (орех)",924]
["Комод детский Ко 2012-1 Арландо (слон-кость)",925]
["К 2002-22 Кровать детская \"Ванечка\" /белый/",926]
["К 2002-22 Кровать детская \"Ванечка\" /вишня/",927]
["К 2002-22 Кровать детская \"Ванечка\" /махагон/",928]
["К 2002-22 Кровать детская \"Ванечка\" /натур/",929]
["К 2002-22 Кровать детская \"Ванечка\" /орех/",930]
["К 2002-22 Кровать детская \"Ванечка\" /слон. кость/",931]
["Кровать  детская \"Даниэль\" (колесо-качалка) белый",932]
["Кровать  детская \"Даниэль\" (колесо-качалка) вишня",933]
["Кровать  детская \"Даниэль\" (колесо-качалка) махагон",934]
["Кровать  детская \"Даниэль\" (колесо-качалка) натуральная",935]
["Кровать  детская \"Даниэль\" (колесо-качалка) орех",936]
["Кровать  детская \"Даниэль\" (колесо-качалка) слоновая кость",937]
["Кровать  детская К 2002-29 \"Даниэль\"  /маятник универ./белый",938]
["Кровать  детская К 2002-29 \"Даниэль\"  /маятник универ./вишня",939]
["Кровать  детская К 2002-29 \"Даниэль\" /маятник универ./махагон",940]
["Кровать  детская К 2002-29 \"Даниэль\" /маятник универ./натур.",941]
["Кровать  детская К 2002-29 \"Даниэль\" /маятник универ./орех",942]
["Кровать  детская К 2002-29 \"Даниэль\" /маятник универ./слон. кость",943]
["К 2001-12 Кровать детская \"Дашенька\" /белый/",944]
["К 2001-12 Кровать детская \"Дашенька\" /вишня/",945]
["К 2001-12 Кровать детская \"Дашенька\" /махагон/",946]
["К 2001-12 Кровать детская \"Дашенька\" /натур/",947]
["К 2001-12 Кровать детская \"Дашенька\" /орех/",948]
["К 2001-12 Кровать детская \"Дашенька\" /слоновая кость/",949]
["Кровать детская \"Дашенька\" маятник универсальный/белый/",950]
["Кровать детская \"Дашенька\" маятник универсальный/вишня/",951]
["Кровать детская \"Дашенька\" маятник универсальный/махагон/",952]
["Кровать детская \"Дашенька\" маятник универсальный/натуральный/",953]
["Кровать детская \"Дашенька\" маятник универсальный/орех/",954]
["Кровать детская \"Дашенька\" маятник универсальный/слон. кость/",955]
["Кровать детская К 2002-18 Джозеппе (колесо- качалка) (белый)",956]
["Кровать детская К 2002-18 Джозеппе (колесо- качалка) (вишня)",957]
["Кровать детская К 2002-18 Джозеппе (колесо- качалка) (махагон)",958]
["Кровать детская К 2002-18 Джозеппе (колесо- качалка) (натур) ",959]
["Кровать детская К 2002-18 Джозеппе (колесо- качалка) (орех)",960]
["Кровать детская К 2002-18 Джозеппе (колесо- качалка) (сл. кость)",961]
["Кровать детская К 2002-18 Джозеппе (маятник) (белый)",962]
["Кровать детская К 2002-18 Джозеппе (маятник) (вишня)",963]
["Кровать детская К 2002-18 Джозеппе (маятник) (махагон)",964]
["Кровать детская К 2002-18 Джозеппе (маятник) (натур)",965]
["Кровать детская К 2002-18 Джозеппе (маятник) (орех)",966]
["Кровать детская К 2002-18 Джозеппе (маятник) (сл. кость)",967]
["Кровать детская К 2002-24 \"Джулия\" (Бабочка, кол./кач.), белая",968]
["Кровать детская К 2002-24 \"Джулия\" (Бабочка, кол./кач.), вишня",969]
["Кровать детская К 2002-24 \"Джулия\" (Бабочка, кол./кач.), махагон",970]
["Кровать детская К 2002-24 \"Джулия\" (Бабочка, кол./кач.), натур",971]
["Кровать детская К 2002-24 \"Джулия\" (Бабочка, кол./кач.), орех",972]
["Кровать детская К 2002-24 \"Джулия\" (Бабочка, кол./кач.), сл. кость",973]
["Кровать детская К 2002-24 \"Джулия\" /Бабочка/маятник универ./белая",974]
["Кровать детская К 2002-24 \"Джулия\" /Бабочка/маятник универ./вишня",975]
["Кровать детская К 2002-24 \"Джулия\" /Бабочка/маятник универ./махагон",976]
["Кровать детская К 2002-24 \"Джулия\" /Бабочка/маятник универ./натур",977]
["Кровать детская К 2002-24 \"Джулия\" /Бабочка/маятник универ./орех",978]
["Кровать детская К 2002-24 \"Джулия\" /Бабочка/маятник универ./сл. кость",979]
["Кровать детская \"Джулия\" (пчелка) (колесо-качалка) вишня",980]
["К 2005-2 Кровать детская \"Диана\" /маятник универ/белый/",981]
["К 2005-2 Кровать детская \"Диана\" /маятник универ/вишня/",982]
["К 2005-2 Кровать детская \"Диана\" /маятник универ/махагон/",983]
["К 2005-2 Кровать детская \"Диана\" /маятник универ/натуральный/",984]
["К 2005-2 Кровать детская \"Диана\" /маятник универ/орех/",985]
["К 2005-2 Кровать детская \"Диана\" /маятник универ/слоновая кость/",986]
["КО 2003-2 Комод детский \"Жасмин\" /белый/",987]
["КО 2003-2 Комод детский \"Жасмин\" /вишня/",988]
["КО 2003-2 Комод детский \"Жасмин\" /махагон/",989]
["КО 2003-2 Комод детский \"Жасмин\" /натур/",990]
["КО 2003-2 Комод детский \"Жасмин\" /орех/",991]
["КО 2003-2 Комод детский \"Жасмин\" /сл. кость/",992]
["КО 2003-3 Комод \"Иришка\" /белый/",993]
["КО 2003-3 Комод \"Иришка\" /вишня/",994]
["КО 2003-3 Комод \"Иришка\" /махагон/",995]
["КО 2003-3 Комод \"Иришка\" /натур/",996]
["КО 2003-3 Комод \"Иришка\" /орех/",997]
["КО 2003-3 Комод \"Иришка\" /слон. кость/",998]
["К 2002-25 Кровать детская \"Кирюша\" /слон.кость/",999]
["К 2002-17 Кровать детская \"Лейла\" /белый/",1000]
["К 2002-17 Кровать детская \"Лейла\" /вишня/",1001]
["К 2002-17 Кровать детская \"Лейла\" /махагон/",1002]
["К 2002-17 Кровать детская \"Лейла\" /натур/",1003]
["К 2002-17 Кровать детская \"Лейла\" /орех/",1004]
["К 2002-17 Кровать детская \"Лейла\" /слоновая кость/",1005]
["Л 2003-1 Кровать-люлька \"Лили\" /маятник/белый/",1006]
["Л 2003-1 Кровать-люлька \"Лили\" /маятник/вишня/",1007]
["Л 2003-1 Кровать-люлька \"Лили\" /маятник/махагон/",1008]
["Л 2003-1 Кровать-люлька \"Лили\" /маятник/натур/",1009]
["Л 2003-1 Кровать-люлька \"Лили\" /маятник/орех/",1010]
["Л 2003-1 Кровать-люлька \"Лили\" /маятник/сл.кость/",1011]
["К 2002-06 Кровать детская \"Людмила\" /белый/",1012]
["К 2002-06 Кровать детская \"Людмила\" /вишня/",1013]
["К 2002-06 Кровать детская \"Людмила\" /махагон/",1014]
["К 2002-06 Кровать детская \"Людмила\" /натур/",1015]
["К 2002-06 Кровать детская \"Людмила\" /орех/",1016]
["К 2002-06 Кровать детская \"Людмила\" /слон.кость/",1017]
["Кровать детская  Мишель (колесо- качалка) К2006- 2 (белый)",1018]
["Кровать детская  Мишель (колесо- качалка) К2006- 2 (вишня) ",1019]
["Кровать детская  Мишель (колесо- качалка) К2006- 2 (махагон)",1020]
["Кровать детская  Мишель (колесо- качалка) К2006- 2 (орех)",1021]
["Кровать детская  Мишель (колесо- качалка) К2006- 2 (сл. кость)",1022]
["Кровать детская К 2006- 2 Мишель (маятник)  (белый)",1023]
["Кровать детская К 2006- 2 Мишель (маятник)  (вишня) ",1024]
["Кровать детская К 2006- 2 Мишель (маятник)  (махагон)",1025]
["Кровать детская К 2006- 2 Мишель (маятник)  (натур) ",1026]
["Кровать детская К 2006- 2 Мишель (маятник)  (орех)",1027]
["Кровать детская К 2006- 2 Мишель (маятник)  (сл. кость)",1028]
["Кровать детская \"Моника\" (колесо) К 2002-20 белая",1029]
["Кровать детская \"Моника\" (колесо) К 2002-20 вишня",1030]
["Кровать детская \"Моника\" (колесо) К 2002-20 махагон",1031]
["Кровать детская \"Моника\" (колесо) К 2002-20 натуральная",1032]
["Кровать детская \"Моника\" (колесо) К 2002-20 орех",1033]
["Кровать детская \"Моника\" (колесо) К 2002-20 слоновая кость",1034]
["К 2002-20 Моника/маятник (белый )",1035]
["К 2002-20 Моника/маятник (вишня )",1036]
["К 2002-20 Моника/маятник (махагон )",1037]
["К 2002-20 Моника/маятник (орех )",1038]
["К 2002-20 Моника/маятник (слон.кость)",1039]
["КО 2012-2 Комод детский Патрик (вишня)",1040]
["КО 2012-2 Комод детский Патрик (махагон)",1041]
["КО 2012-2 Комод детский Патрик (натур)",1042]
["КО 2012-2 Комод детский Патрик (орех)",1043]
["КО 2012-2 Комод детский Патрик (сл. кость)",1044]
["К 2002-15 Кровать детская \"Полина\" /маятник универ/белый/",1045]
["К 2002-15 Кровать детская \"Полина\" /маятник универ/вишня/",1046]
["К 2002-15 Кровать детская \"Полина\" /маятник универ/махаг/",1047]
["К 2002-15 Кровать детская \"Полина\" /маятник универ/натур/",1048]
["К 2002-15 Кровать детская \"Полина\" /маятник универ/орех/",1049]
["К 2002-15 Кровать детская \"Полина\" /маятник универ/сл. к/",1050]
["КО 2003-3 Комод \"Сильвия\" /белый/",1051]
["КО 2003-3 Комод \"Сильвия\" /вишня/",1052]
["КО 2003-3 Комод \"Сильвия\" /махагон/",1053]
["КО 2003-3 Комод \"Сильвия\" /натур/",1054]
["КО 2003-3 Комод \"Сильвия\" /орех/",1055]
["КО 2003-3 Комод \"Сильвия\" /сл.кость/",1056]
["Комод  \"Сильвия - Люкс\" белый",1057]
["Комод  \"Сильвия - Люкс\" вишня",1058]
["Комод  \"Сильвия - Люкс\" махагон",1059]
["Комод  \"Сильвия - Люкс\" натуральный",1060]
["Комод  \"Сильвия - Люкс\" орех",1061]
["Комод  \"Сильвия - Люкс\" слоновая кость",1062]
["К 2001-11 Кровать детская \"Симоник\" /белый/",1063]
["К 2001-11 Кровать детская \"Симоник\" /вишня/",1064]
["К 2001-11 Кровать детская \"Симоник\" /махагон/",1065]
["К 2001-11 Кровать детская \"Симоник\" /орех/",1066]
["К 2001-11 Кровать детская \"Симоник\" /слоновая кость/",1067]
["Кровать детская \"Софи\" (колесо) вишня",1068]
["Кровать детская К 2002-25 \"Софи\" /маятник универ./ белая",1069]
["Кровать детская К 2002-25\"Софи\" /маятник универ./вишня",1070]
["Кровать детская К 2002-25\"Софи\" /маятник универ./махагон",1071]
["Кровать детская К 2002-25\"Софи\" /маятник универ./натуральная",1072]
["Кровать детская К 2002-25\"Софи\" /маятник универ./орех",1073]
["Кровать детская К 2002-25\"Софи\" /маятник универ./слоновая/кость",1074]
["КК-2010-Т Кровать детская \"Тереза\" (белый)",1075]
["КК-2010-Т Кровать детская \"Тереза\" (вишня)",1076]
["КК-2010-Т Кровать детская \"Тереза\" (махагон)",1077]
["КК-2010-Т Кровать детская \"Тереза\" (натур)",1078]
["КК-2010-Т Кровать детская \"Тереза\" (орех)",1079]
["КК-2010-Т Кровать детская \"Тереза\" (слон.кость)",1080]
["К 2003-3 Кровать детская \"Чу-Ча\" /белый/маятник универ/new",1081]
["К 2003-3 Кровать детская \"Чу-Ча\" /вишня/маятник универ/new",1082]
["К 2003-3 Кровать детская \"Чу-Ча\" /махагон/маятник универ/new",1083]
["К 2003-3 Кровать детская \"Чу-Ча\" /натур/маятник универ/new",1084]
["К 2003-3 Кровать детская \"Чу-Ча\" /орех/маятник универ/new",1085]
["К 2003-3 Кровать детская \"Чу-Ча\" /слоновая кость/маятник универ/new",1086]
["Кроватка детская \"Шарлотта\" (колесо-качалка) белый",1087]
["Кроватка детская \"Шарлотта\" (колесо-качалка) вишня",1088]
["Кроватка детская \"Шарлотта\" (колесо-качалка) махагон",1089]
["Кроватка детская \"Шарлотта\" (колесо-качалка) натуральный",1090]
["Кроватка детская \"Шарлотта\" (колесо-качалка) орех",1091]
["Кроватка детская К 2003-2 \"Шарлотта\" /маятник универ./белый",1092]
["Кроватка детская К 2003-2\"Шарлотта\" /маятник универ./вишня",1093]
["Кроватка детская К 2003-2\"Шарлотта\" /маятник универ./махагон",1094]
["Кроватка детская К 2003-2\"Шарлотта\" /маятник универ./орех",1095]
["Кроватка детская К 2003-2\"Шарлотта\" /маятник универ./сл. кость",1096]
["GT1183  Комод пеленальный Belcanto Lux White",1097]
["GT1184  Комод пеленальный Belcanto Lux Ivory",1098]
["GT1185  Комод пеленальный Belcanto Lux Cherry",1099]
["GT1186  Комод пеленальный Belcanto Lux Chocolo",1100]
["Belcanto Cherry  Кроватка д/новорожденных  (120x60)",1101]
["Belcanto Lux Caramel Кроватка д/новорожденных  (120x60)",1102]
["Belcanto Lux Cherry Кроватка д/новорожденных  (120x60)",1103]
["Belcanto Lux Chocolo Кроватка д/новорожденных  (120x60)!!! НОВИНКА !!",1104]
["Belcanto Lux белый  Кроватка д/новорожденных  (120x60)",1105]
["Belcanto Lux слон. костьКроватка д/новорожденных  (120x60)",1106]
["GB Кроватка  \"Bravo\" /белый/120х60",1107]
["GB Кроватка  \"Bravo\" /слоновая кость/120х60",1108]
["GB Кроватка  \"Bravo\" /шоколад/120х60",1109]
["FANTASIA  LUX белый Кроватка д/новорожденных (120x60)",1110]
["FANTASIA шоколад кроватка д/новорожденных (120x60)",1111]
["  GB 1086 Кровать д/дошкольников Grande Chocolo (шоколад) 160х80 см",1112]
["G 1091 W Кроватка д/новорожденных Magico White (120x60 cм)",1113]
["G 1092 W Кроватка д/новорожденных  Magico Chocolo (120 x 60)",1114]
["G 1092 W Кроватка д/новорожденных Magico Ivory (120x60 cм)",1115]
["GB 1093 W Кроватка д/новорожденных Dolche White (140x70 cм)",1116]
["Механизм привода кровати ",1117]
["С 234 ЗН Кровать детская \"Машенька\" (крас.-коричневый)",1118]
["С 237 с\\с Кровать детская \"Машенька\" красно-кор. с ЗН",1119]
["С 257 Комод накладка №22 (Мишка на облаке) белый",1120]
["С 265 Комод (античная слоновая кость, резьба с инкустрацией стразами №10)",1121]
["С 265 Комод (белый, резьба с инкустрацией стразами №10)",1122]
["С 265 Комод (слоновая кость, резьба с инкустрацией стразами №10)",1123]
["С 265 Комод (белый) с матрацом, резьба с инкустрацией стразами №10 (Птички))",1124]
["С 265 Комод (слоновая кость) с матрацом, резьба с инкустрацией стразами №10 (Птички)",1125]
["С 265 Комод (шоколад) с матрацом, резьба с инкустрацией стразами №10 (Птички)",1126]
["С 352 Кровать детская \"Викторина\" /красно-коричн.",1127]
["С 354 Кровать детская \"Злата\" красно-коричн.",1128]
["С 358 Кровать детская \"Анюта\" красно-коричневый",1129]
["С 406 комод тип 35 вишня",1130]
["С 406 комод тип 35 красно-коричневый",1131]
["С 421 Комод  тип 32 вишня",1132]
["С 421 Комод  тип 32 красно-коричневый с настилом",1133]
["С 421 Комод  тип 32 шоколад",1134]
["С 421 Комод  тип 32 шоколад с настилом",1135]
[" С 431 Шкаф детский тип 3 /красно кор/",1136]
["С 438 МРс Комод тип 29 красно-коричневый",1137]
["С 439 МРс Комод тип 28 белый",1138]
["С 439 МРс Комод тип 28 красно-коричневый",1139]
["С 439 МРс Комод тип 28 шоколад",1140]
["С 445 Комод тип 22  вишня",1141]
["С 454 Кресло-качалка с подставкой для ног (натуральный)",1142]
["С 475 Комод тип 15 /красно-коричневый/",1143]
["С 492 Комод тип 16 красно-коричневый",1144]
["С 492 Комод тип 16 шоколад",1145]
["531 Шкаф детский (слоновая кость) резба №10",1146]
["Кроватка детская Любаша (медовый)",1147]
["541 Комод тип 20 (шоколад)",1148]
["545 Комод (шоколад)",1149]
["С 550 Кровать детская \"Елизавета\"/белый",1150]
["С 550 Кровать детская \"Елизавета\"/слоновая кость",1151]
["С 550 Кровать детская \"Елизавета\"/шоколад",1152]
["553 Кровать детская Елизавета (слоновая кость) накладка №27 бабочки",1153]
["С 555 Кровать детская \"Карина\" /бордо-глянцевый",1154]
["С 555 Кровать детская \"Карина\" /молочный шоколад",1155]
["С 555 Кровать детская \"Карина\" /розовый",1156]
["565 Комод (белый)",1157]
["565 Комод (слоновая кость)",1158]
["565 Комод (шоколад)",1159]
[" С 575 комод с матрацом (античная слоновая кость)",1160]
["С 600 Кровать детская \"Регина\"  /белый/",1161]
["С 600 Кровать детская \"Регина\"  /вишня/",1162]
["С 600 Кровать детская \"Регина\"  /медовый/",1163]
["С 600 Кровать детская \"Регина\"  /ольха /",1164]
["С 600 Кровать детская \"Регина\"  /шоколад/",1165]
["С 600 Кровать детская \"Регина\" /красно-коричневый/",1166]
["С 600 Кровать детская \"Регина\" /слоновая кость/",1167]
["С 602 Кровать детская \"Регина\"  /белый/резьба  №1/ стразы аквамарин",1168]
["С 602 Кровать детская \"Регина\"  /белый/резьба с инкустрацией стразами №1/",1169]
["С 602 Кровать детская \"Регина\"  /шоколад/резьба с инкустрацией стразами №1/",1170]
["С 610 Кровать детская \"Лия\" красно-коричневый",1171]
["С 619 Кровать детская \"Кристина\"  /белый/",1172]
["С 619 Кровать детская \"Кристина\"  /вишня/",1173]
["С 619 Кровать детская \"Кристина\"  /красно-коричневый/",1174]
["С 619 Кровать детская \"Кристина\"  /медовый/",1175]
["С 625 Кровать детская \"Ирина\" /М попер/ белый",1176]
["С 625 Кровать детская \"Ирина\" /М попер/ красно-кор",1177]
["С 625 Кровать детская \"Ирина\" /М попер/ шоколад",1178]
["С 625 Кровать детская \"Ирина\" /М попер/вишня",1179]
["С 625 Кровать детская \"Ирина\" медовый",1180]
["С 625 Кровать детская \"Ирина\" слоновая кость",1181]
["С 635 Кровать детская \"Любаша\" белый",1182]
["С 635 Кровать детская \"Любаша\" красно-коричневый",1183]
["С 635 Кровать детская \"Любаша\" медовый",1184]
["С 635 Кровать детская \"Любаша\" слон.кость",1185]
["С 635 Кровать детская \"Любаша\" шоколад",1186]
["С 653 Кровать детская \"Эрика\" вишня",1187]
["С 653 Кровать детская \"Эрика\" красно-коричневый",1188]
["С 656 Кровать детская \"Кармелина\" /белый",1189]
["С 656 Кровать детская \"Кармелина\" /вишня",1190]
["С С 656 Кровать детская \"Кармелина\" /ольха",1191]
["С 663 Кровать детская \"Яна\" белый",1192]
["С 663 Кровать детская \"Яна\" вишня",1193]
["С 663 Кровать детская \"Яна\" слоновая кость",1194]
["С 665МР с Комод тип 20 /античная вишня/",1195]
["С 665МР с Комод тип 20 /белый/",1196]
["С 665МР с Комод тип 20 /медовый/",1197]
["С 669  Кровать детская \"Элина\" /ЗН, с/с,М п/п/ортопед/белый/",1198]
["С 669  Кровать детская \"Элина\" /ЗН, с/с,М п/п/ортопед/красно - кор/",1199]
["С 669  Кровать детская \"Элина\" /ЗН, с/с,М п/п/ортопед/слон/",1200]
["С 669  Кровать детская \"Элина\" /ЗН, с/с,М п/п/ортопед/шоколад/",1201]
["С 676 ЗН с\\с М Кровать детская \"Ангелина\" /красно-коричневый/",1202]
["С 676 ЗН с\\с М Кровать детская \"Ангелина\" /маят.пр/белый",1203]
["С 676 ЗН с\\с М Кровать детская \"Ангелина\" /маят.пр/медовый",1204]
["С 676 ЗН с\\с М Кровать детская \"Ангелина\" /маят.пр/светлый орех",1205]
["С 676 ЗН с\\с М Кровать детская \"Ангелина\" /маят.пр/слоновая кость",1206]
["С 676 ЗН с\\с М Кровать детская \"Ангелина\" /маят.пр/шоколад",1207]
["С 700 Кровать детская \"Марина\" б/ящ. /маятник/вишня",1208]
["С 700 Кровать детская \"Марина\" б/ящ. /маятник/медовый",1209]
["С 700 Кровать детская \"Марина\" б/ящика, красно-коричневый",1210]
["С 700 Кровать детская \"Марина\" б/ящика,(слоновая кость)",1211]
["С 700 Кровать детская \"Марина\" б/ящика,(шоколад)",1212]
["С 702 Кровать детская \"Марина\" (белая) резьба №15",1213]
["С 702 Кровать детская \"Марина\" (слоновая кость) резьба №15",1214]
["С 702 Кровать детская \"Марина\" (шоколад) резьба №15",1215]
["С 707 Кровать детская \"Валерия\"(античная вишня,резьба №19) накладка №22 мишка на облаке",1216]
["С 707 Кровать детская \"Валерия\"(белый,резьба №19, накладка №22 (Мишка на облаке)",1217]
["С 707 Кровать детская \"Валерия\"(слоновая кость,резьба №19, накладка №22 (Мишка на облаке)",1218]
["С 707 Кровать детская \"Валерия\"(шоколад,резьба №19) накладка 22",1219]
["С 717 Кровать детская \"Елисей\" (белый, резьба  со стразами №10 (Птички)",1220]
["С 717 Кровать детская \"Елисей\" (кр-кор  резьба  №10)",1221]
["С 717 Кровать детская \"Елисей\" (кр.-кор., ЗН, с/с, резьба №12)",1222]
["С 717 Кровать детская \"Елисей\" (слоновая кость, резьба  со стразами №10 (Птички)",1223]
["С 717 Кровать детская \"Елисей\" (шоколад, резьба  со стразами №10 (Птички)",1224]
["С 725 Кровать детская \"Руслан\" (белый, ЗН, ) резьба №18",1225]
["С 725 Кровать детская \"Руслан\" (слоновая кость) резба№18",1226]
["С 725 Кровать детская \"Руслан\" (шоколад, ЗН, с/с) резьба №18",1227]
["С 777 Кровать детская \"Юлиан\" /белая",1228]
["С 777 Кровать детская \"Юлиан\" /шоколад",1229]
["С 848  Кровать детская \"Гоша\"",1230]
["С 851 Кровать детская \"Виталина\" белый, апл. Жираф",1231]
["С 851 Кровать детская \"Виталина\" красно-коричневый, апл. Жираф",1232]
["С 851 Кровать детская \"Виталина\" медовая, апл. Жираф",1233]
["С 851 Кровать детская \"Виталина\" слоновая кость",1234]
["С 851 Кровать детская \"Виталина\" шоколад",1235]
["С 888 Кровать детская \"Аэлита\" (белая, резьба с инкрустацией стразами №10)",1236]
["С 888 Кровать детская \"Аэлита\" (слон. кость, резьба с инкрустацией стразами №10)",1237]
["С 888 Кровать детская \"Аэлита\" (шоколад, накладка \"Сердечки\" со стразами)",1238]
["С 888 Кровать детская \"Аэлита\" (шоколад, резьба с инкрустацией стразами №10)",1239]
["С 35 Набор детской спортивной мебели (ольха)",1240]
["С 36 Набор детской спортивной мебели (ольха)",1241]
["С 37 Набор детской спортивной мебели (медовый)",1242]
["С 37 Набор детской спортивной мебели (ольха)",1243]
["С749 Кровать детская Валерия (белый)накладка №22 мишка на облаке",1244]
["С749 Кровать детская Валерия (слон кость)накладка №22 мишка на облаке",1245]
["С749 Кровать детская Валерия (шоколад)накладка №22 мишка на облаке",1246]
[" БИ 03 Комод с пеленальным столиком узкий (белый)",1247]
[" БИ 03 Комод с пеленальным столиком узкий (слоновая кость)",1248]
["БИ 01 Шкаф детский 2-х створчатый (махагон)",1249]
["БИ 01 Шкаф детский 2-х створчатый, (белый)",1250]
["БИ 01 Шкаф детский 2-х створчатый, (натуральный)",1251]
["БИ 01 Шкаф детский 2-х створчатый, (орех)",1252]
["БИ 01 Шкаф детский 2-х створчатый, (отбеленный)",1253]
["БИ 01 Шкаф детский 2-х створчатый, (слоновая кость)",1254]
["БИ 01 Шкаф детский 2-х створчатый, (темный орех)",1255]
["БИ 05 Кровать-трансформер с ящиком \"Феррария\"/белый",1256]
["БИ 05 Кровать-трансформер с ящиком \"Феррария\"/махагон/",1257]
["БИ 05 Кровать-трансформер с ящиком \"Феррария\"/натуральный",1258]
["БИ 05 Кровать-трансформер с ящиком \"Феррария\"/орех",1259]
["БИ 05 Кровать-трансформер с ящиком \"Феррария\"/темный орех",1260]
["БИ 07.2 Кровать/белый",1261]
["БИ 07.2 Кровать/махагон",1262]
["БИ 07.2 Кровать/натуральный",1263]
["БИ 07.2 Кровать/орех",1264]
["БИ 07.2 Кровать/светлый орех",1265]
["БИ 07.2 Кровать/слоновая кость",1266]
["БИ 07.2 Кровать/темный орех",1267]
["БИ 07.3 Кровать/белый",1268]
["БИ 07.3 Кровать/натуральный",1269]
["БИ 07.3 Кровать/орех",1270]
["БИ 07.3 Кровать/светлый орех",1271]
["БИ 07.3 Кровать/слоновая кость",1272]
["БИ 07.3 Кровать/темный орех",1273]
["АБ 15 \"Лютик\" кровать без ящика  (белая)",1274]
["АБ 15 \"Лютик\" кровать без ящика  (махагон)",1275]
["АБ 15 \"Лютик\" кровать без ящика  (натуральный)",1276]
["АБ 15 \"Лютик\" кровать без ящика  (орех)",1277]
["АБ 15 \"Лютик\" кровать без ящика  (отбеленный)",1278]
["АБ 15 \"Лютик\" кровать без ящика  (светлый орех)",1279]
["АБ 15 \"Лютик\" кровать без ящика  (слоновая кость)",1280]
["АБ 15 \"Лютик\" кровать без ящика  (темный орех)",1281]
["АБ 15.1 \"Лютик\" кровать с ящиком  (белая)",1282]
["АБ 15.1 \"Лютик\" кровать с ящиком  (голубая)",1283]
["АБ 15.1 \"Лютик\" кровать с ящиком  (зеленая)",1284]
["АБ 15.1 \"Лютик\" кровать с ящиком  (золотистая)",1285]
["АБ 15.1 \"Лютик\" кровать с ящиком  (натуральный)",1286]
["АБ 15.1 \"Лютик\" кровать с ящиком  (орех)",1287]
["АБ 15.1 \"Лютик\" кровать с ящиком  (светлый орех)",1288]
["АБ 15.1 \"Лютик\" кровать с ящиком  (слон)",1289]
["АБ 15.1 \"Лютик\" кровать с ящиком  (темный орех)",1290]
["АБ 15.2  \"Лютик\" кроватка детская маятниковая (белая)",1291]
["АБ 15.2  \"Лютик\" кроватка детская маятниковая (голубая)",1292]
["АБ 15.2  \"Лютик\" кроватка детская маятниковая (махагон)",1293]
["АБ 15.2  \"Лютик\" кроватка детская маятниковая (натуральный)",1294]
["АБ 15.2  \"Лютик\" кроватка детская маятниковая (розовая)",1295]
["АБ 15.2  \"Лютик\" кроватка детская маятниковая (светлый орех)",1296]
["АБ 15.2  \"Лютик\" кроватка детская маятниковая (слоновая кость)",1297]
["АБ 15.2  \"Лютик\" кроватка детская маятниковая (темный орех)",1298]
["АБ 15.3  \"Лютик\" кроватка детская маятниковая (белая)",1299]
["АБ 15.3  \"Лютик\" кроватка детская маятниковая (голубая)",1300]
["АБ 15.3  \"Лютик\" кроватка детская маятниковая (зеленая)",1301]
["АБ 15.3  \"Лютик\" кроватка детская маятниковая (махагон)",1302]
["АБ 15.3  \"Лютик\" кроватка детская маятниковая (натур)",1303]
["АБ 15.3  \"Лютик\" кроватка детская маятниковая (орех)",1304]
["АБ 15.3  \"Лютик\" кроватка детская маятниковая (отбеленный)",1305]
["АБ 15.3  \"Лютик\" кроватка детская маятниковая (розовая)",1306]
["АБ 15.3  \"Лютик\" кроватка детская маятниковая (светлый орех)",1307]
["АБ 15.3  \"Лютик\" кроватка детская маятниковая (слоновая кость)",1308]
["АБ 15.3  \"Лютик\" кроватка детская маятниковая (темный орех)",1309]
["АБ 16 \"Ромашка\" кроватка детская без ящика (белая)",1310]
["АБ 16 \"Ромашка\" кроватка детская без ящика (натуральная)",1311]
["АБ 16 \"Ромашка\" кроватка детская без ящика (орех)",1312]
["АБ 16 \"Ромашка\" кроватка детская без ящика (светлый орех)",1313]
["АБ 16 \"Ромашка\" кроватка детская без ящика (слоновая кость)",1314]
["АБ 16 \"Ромашка\" кроватка детская без ящика (темный орех)",1315]
["АБ 16.1 \"Ромашка\" кроватка детская с ящиком (белая)",1316]
["АБ 16.1 \"Ромашка\" кроватка детская с ящиком (голубая)",1317]
["АБ 16.1 \"Ромашка\" кроватка детская с ящиком (натуральная)",1318]
["АБ 16.1 \"Ромашка\" кроватка детская с ящиком (орех)",1319]
["АБ 16.1 \"Ромашка\" кроватка детская с ящиком (светлый орех)",1320]
["АБ 16.1 \"Ромашка\" кроватка детская с ящиком (слоновая кость)",1321]
["АБ 16.1 \"Ромашка\" кроватка детская с ящиком (темный орех)",1322]
["АБ 16.2.4  \"Ромашка\" кроватка детская маятниковая (голубая)",1323]
["АБ 16.2.4  \"Ромашка\" кроватка детская маятниковая (махагон)",1324]
["АБ 16.2.4  \"Ромашка\" кроватка детская маятниковая с ящиком (белая)",1325]
["АБ 16.2.4  \"Ромашка\" кроватка детская маятниковая с ящиком (натуральная)",1326]
["АБ 16.2.4  \"Ромашка\" кроватка детская маятниковая с ящиком (орех)",1327]
["АБ 16.2.4  \"Ромашка\" кроватка детская маятниковая с ящиком (светлый орех)",1328]
["АБ 16.2.4  \"Ромашка\" кроватка детская маятниковая с ящиком (слоновая кость)",1329]
["АБ 16.2.4  \"Ромашка\" кроватка детская маятниковая с ящиком (темный орех)",1330]
["АБ 16.3  \"Ромашка\" кроватка детская маятниковая с ящиком (белая)",1331]
["АБ 16.3  \"Ромашка\" кроватка детская маятниковая с ящиком (голубая)",1332]
["АБ 16.3  \"Ромашка\" кроватка детская маятниковая с ящиком (зеленая)",1333]
["АБ 16.3  \"Ромашка\" кроватка детская маятниковая с ящиком (махагон)",1334]
["АБ 16.3  \"Ромашка\" кроватка детская маятниковая с ящиком (натуральная)",1335]
["АБ 16.3  \"Ромашка\" кроватка детская маятниковая с ящиком (орех)",1336]
["АБ 16.3  \"Ромашка\" кроватка детская маятниковая с ящиком (отбеленный)",1337]
["АБ 16.3  \"Ромашка\" кроватка детская маятниковая с ящиком (светлый орех)",1338]
["АБ 16.3  \"Ромашка\" кроватка детская маятниковая с ящиком (слоновая кость)",1339]
["АБ 16.3  \"Ромашка\" кроватка детская маятниковая с ящиком (темный орех)",1340]
["АБ 17.0  Люкс  кроватка детская без ящика  /белый/",1341]
["АБ 17.0  Люкс кроватка детская без ящика  /натуральная/",1342]
["АБ 17.0  Люкс кроватка детская без ящика  /светлый орех/",1343]
["АБ 17.0  Люкс кроватка детская без ящика  /слоновая кость/",1344]
["АБ 17.0  Люкс кроватка детская без ящика  /темный орех/",1345]
["АБ 17.1  \"Люкс\" кроватка детская с ящиком /белый/",1346]
["АБ 17.1  \"Люкс\" кроватка детская с ящиком /орех/",1347]
["АБ 17.1  \"Люкс\" кроватка детская с ящиком /отбеленный/",1348]
["АБ 17.1  \"Люкс\" кроватка детская с ящиком /светлый орех/",1349]
["АБ 17.1  \"Люкс\" кроватка детская с ящиком /слоновая кость/",1350]
["АБ 17.1  \"Люкс\" кроватка детская с ящиком /темный орех/",1351]
["АБ 17.2 \"Люкс\" кроватка детская  (белая)",1352]
["АБ 17.2 \"Люкс\" кроватка детская  (голубая)",1353]
["АБ 17.2 \"Люкс\" кроватка детская  (золотистая)",1354]
["АБ 17.2 \"Люкс\" кроватка детская  (махагон)",1355]
["АБ 17.2 \"Люкс\" кроватка детская  (натуральный)",1356]
["АБ 17.2 \"Люкс\" кроватка детская  (орех)",1357]
["АБ 17.2 \"Люкс\" кроватка детская  (отбеленный)",1358]
["АБ 17.2 \"Люкс\" кроватка детская  (слоновая кость)",1359]
["АБ 17.2 \"Люкс\" кроватка детская  (темный орех)",1360]
["АБ 17.3  Люкс кроватка детская /белый/",1361]
["АБ 17.3  Люкс кроватка детская /голубой/",1362]
["АБ 17.3  Люкс кроватка детская /зеленый/",1363]
["АБ 17.3  Люкс кроватка детская /махагон/",1364]
["АБ 17.3  Люкс кроватка детская /натур/",1365]
["АБ 17.3  Люкс кроватка детская /орех /",1366]
["АБ 17.3  Люкс кроватка детская /отбеленный/",1367]
["АБ 17.3  Люкс кроватка детская /светлый орех /",1368]
["АБ 17.3 Люкс кроватка детская маятник /слон.кость/",1369]
["АБ 17.3 Лилия маятник.продольн. с инкрустацией стразами Д 001 (орех темный 35)",1370]
["АБ 17.3 Лилия маятник.продольн. с инкрустацией стразами Д 002 (орех темный 35)",1371]
["АБ 17.3 Лилия маятник.продольн. с инкрустацией стразами Д 003 (орех темный 35)",1372]
["АБ 17.3 Лилия маятник.продольный с инкрустацией стразами  Д 001 (белый)",1373]
["АБ 17.3 Лилия маятник.продольный с инкрустацией стразами  Д 001 (сл. кость)",1374]
["АБ 17.3 Лилия маятник.продольный с инкрустацией стразами  Д 002 (сл. кость)",1375]
["АБ 17.3 Лилия маятник.продольный с инкрустацией стразами  Д 003 (белый)",1376]
["АБ 17.3 Лилия маятник.продольный с инкрустацией стразами  Д 003 (сл.кость)",1377]
["АБ 18.1 \"Семицветик\" кровать детская с ящиком  /белая/",1378]
["АБ 18.1 \"Семицветик\" кровать детская с ящиком  /розовая/",1379]
["АБ 18.1 \"Семицветик\" кровать детская с ящиком /голубая/",1380]
["АБ 18.1 \"Семицветик\" кровать детская с ящиком /натуральный/",1381]
["АБ 18.1 \"Семицветик\" кровать детская с ящиком /орех/",1382]
["АБ 18.1 \"Семицветик\" кровать детская с ящиком /темный орех/",1383]
["АБ 18.2 \"Маргаритка\" кроватка детская с ящиком (голубая)",1384]
["АБ 18.2 \"Маргаритка\" кроватка детская с ящиком (зеленая)",1385]
["АБ 18.2 \"Маргаритка\" кроватка детская с ящиком (золотистый)",1386]
["АБ 18.3 \"Незабудка\" кроватка детская маятник /отбеленный",1387]
["АБ 18.3 \"Незабудка\" кроватка детская маятниковая /белая/",1388]
["АБ 18.3 \"Незабудка\" кроватка детская маятниковая с ящиком (зеленая)",1389]
["АБ 18.3 \"Незабудка\" кроватка детская маятниковая с ящиком /голубая/",1390]
["АБ 18.3 \"Незабудка\" кроватка детская маятниковая с ящиком /золотистая/",1391]
["АБ 18.3 \"Незабудка\" кроватка детская маятниковая с ящиком /розовая/",1392]
["АБ 18.3 \"Незабудка\" кроватка детская маятниковая с ящиком /светлый орех/",1393]
["АБ 18.3 \"Незабудка\" кроватка детская маятниковая с ящиком /слоновая кость/",1394]
["АБ 19  \"Жасмин\" кроватка детская без ящика / белый",1395]
["АБ 19  \"Жасмин\" кроватка детская без ящика /светлый орех/",1396]
["АБ 19.1  \"Жасмин\" кроватка детская с ящиком / белый",1397]
["АБ 19.1  \"Жасмин\" кроватка детская с ящиком / орех",1398]
["АБ 19.1  \"Жасмин\" кроватка детская с ящиком / светлый орех",1399]
["АБ 19.1  \"Жасмин\" кроватка детская с ящиком / слон кость",1400]
["АБ 19.1  \"Жасмин\" кроватка детская с ящиком / темный  орех",1401]
["АБ 19.2 \"Жасмин\" поперечный маятник /белый/",1402]
["АБ 19.2 \"Жасмин\" поперечный маятник /отбеленный/",1403]
["АБ 19.2 \"Жасмин\" поперечный маятник /слоновая кость/",1404]
["АБ 19.2 \"Жасмин\" поперечный маятник/ орех",1405]
["АБ 19.2 \"Жасмин\" поперечный маятник/махагон",1406]
["АБ 19.2 \"Жасмин\" поперечный маятник/натуральный",1407]
["АБ 19.2 \"Жасмин\" поперечный маятник/светлый орех",1408]
["АБ 19.2 \"Жасмин\" поперечный маятник/темный орех",1409]
["АБ 19.3 \"Жасмин\" продольный маятник/ белый",1410]
["АБ 19.3 \"Жасмин\" продольный маятник/махагон",1411]
["АБ 19.3 \"Жасмин\" продольный маятник/натуральный",1412]
["АБ 19.3 \"Жасмин\" продольный маятник/орех",1413]
["АБ 19.3 \"Жасмин\" продольный маятник/отбеленный",1414]
["АБ 19.3 \"Жасмин\" продольный маятник/св.орех",1415]
["АБ 19.3 \"Жасмин\" продольный маятник/слон",1416]
["АБ 19.3 \"Жасмин\" продольный маятник/т.орех",1417]
["АБ 21.2 Кровать \"Лаванда\", маятник п/п,/ВИШНЯ-ПАТИНА/",1418]
["АБ 21.2 Кровать \"Лаванда\", маятник попер, /белая",1419]
["АБ 21.2 Кровать \"Лаванда\", маятник попер, /махагон",1420]
["АБ 21.2 Кровать \"Лаванда\", маятник попер, /натур",1421]
["АБ 21.2 Кровать \"Лаванда\", маятник попер, /орех",1422]
["АБ 21.2 Кровать \"Лаванда\", маятник попер, /отбеленный",1423]
["АБ 21.2 Кровать \"Лаванда\", маятник попер, /светлозеленый",1424]
["АБ 21.2 Кровать \"Лаванда\", маятник попер, /светлый орех",1425]
["АБ 21.2 Кровать \"Лаванда\", маятник попер, /слоновая кость",1426]
["АБ 21.2 Кровать \"Лаванда\", маятник попер, /темный орех",1427]
["АБ 21.3 Кровать \"Лаванда\", маятник прод, /ВИШНЯ-ПАТИНА",1428]
["АБ 21.3 Кровать \"Лаванда\", маятник прод,/белая",1429]
["АБ 21.3 Кровать \"Лаванда\", маятник прод,/голубая",1430]
["АБ 21.3 Кровать \"Лаванда\", маятник прод,/махагон",1431]
["АБ 21.3 Кровать \"Лаванда\", маятник прод,/натуральный",1432]
["АБ 21.3 Кровать \"Лаванда\", маятник прод,/орех",1433]
["АБ 21.3 Кровать \"Лаванда\", маятник прод,/отбеленный",1434]
["АБ 21.3 Кровать \"Лаванда\", маятник прод,/розовая",1435]
["АБ 21.3 Кровать \"Лаванда\", маятник прод,/св. орех",1436]
["АБ 21.3 Кровать \"Лаванда\", маятник прод,/слон.кость",1437]
["АБ 21.3 Кровать \"Лаванда\", маятник прод,/темный орех",1438]
["АБ 23.2 Кровать \"Камелия\", маятник попер, /зеленая",1439]
["АБ 23.2 Кровать \"Камелия\", маятник попер, /натуральная",1440]
["АБ 23.2 Кровать \"Камелия\", маятник попер, /розовая",1441]
["АБ 23.2 Кровать \"Камелия\", маятник попер, /светлый орех",1442]
["АБ 23.3 Кровать \"Камелия\", маятник прод, /белый-голубой/",1443]
["АБ 23.3 Кровать \"Камелия\", маятник прод, /белый-жёлтый/",1444]
["АБ 23.3 Кровать \"Камелия\", маятник прод, /белый-розовый/",1445]
["АБ 23.3 Кровать \"Камелия\", маятник прод, /голубая",1446]
["АБ 23.3 Кровать \"Камелия\", маятник прод, /зеленая",1447]
["АБ 23.3 Кровать \"Камелия\", маятник прод, /натуральная",1448]
["АБ 23.3 Кровать \"Камелия\", маятник прод, /орех",1449]
["АБ 23.3 Кровать \"Камелия\", маятник прод, /светлый орех",1450]
["АБ 23.3 Кровать \"Камелия\", маятник прод, /темный орех",1451]
["АБ 23.3 Кровать \"Камелия\", маятник прод. /махагон",1452]
["АБ 24 \"Орхидея\"Кровать без ящика/белый",1453]
["АБ 24 \"Орхидея\"Кровать без ящика/светлый орех",1454]
["АБ 24 \"Орхидея\"Кровать без ящика/слоновая кость",1455]
["АБ 24 \"Орхидея\"Кровать без ящика/темный орех",1456]
["АБ 24.1 \"Орхидея\" Кровать с ящиком /орех",1457]
["АБ 24.2 \"Орхидея\" с шариками / белый",1458]
["АБ 24.2 \"Орхидея\" с шариками / орех",1459]
["АБ 24.2 \"Орхидея\" с шариками / светлый орех",1460]
["АБ 24.2 \"Орхидея\" с шариками /махагон",1461]
["АБ 24.2 \"Орхидея\" с шариками /натуральный",1462]
["АБ 24.2 \"Орхидея\" с шариками /светло зеленый",1463]
["АБ 24.2 \"Орхидея\" с шариками /слоновая кость",1464]
["АБ 24.2 \"Орхидея\" с шариками /темный орех",1465]
["АБ 24.3 \"Орхидея\" (с шариками)  белый",1466]
["АБ 24.3 \"Орхидея\" (с шариками) натуральный",1467]
["АБ 24.3 \"Орхидея\" (с шариками) орех",1468]
["АБ 24.3 \"Орхидея\" (с шариками) отбеленный",1469]
["АБ 24.3 \"Орхидея\" (с шариками) светлый орех",1470]
["АБ 24.3 \"Орхидея\" (с шариками) слоновая кость",1471]
["АБ 24.3 \"Орхидея\" (с шариками) темный орех",1472]
["АБ 25.2 \"Виола\"  орех",1473]
["АБ 25.2 \"Виола\" белый",1474]
["АБ 25.2 \"Виола\" светлый орех",1475]
["АБ 25.2 \"Виола\" слоновая кость",1476]
["АБ 25.2 \"Виола\" темный орех",1477]
["АБ 30 Комод с шестью ящиками (белый)",1478]
["АБ 30 Комод с шестью ящиками (натуральный)",1479]
["АБ 30 Комод с шестью ящиками (светлый орех)",1480]
["АБ 30 Комод с шестью ящиками (темный орех)",1481]
["АБ 31 Комод \"Императорский\" / белый",1482]
["АБ 31 Комод \"Императорский\" / натуральный",1483]
["АБ 31 Комод \"Императорский\" / орех",1484]
["АБ 31 Комод \"Императорский\" / отбеленный",1485]
["АБ 31 Комод \"Императорский\" / салатовый",1486]
["АБ 31 Комод \"Императорский\" / светлый орех",1487]
["АБ 31 Комод \"Императорский\" / слоновая кость",1488]
["АБ 31 Комод \"Императорский\" / темный орех",1489]
["АБ 33 Комод со столиком для пеленания (розовый)",1490]
["АБ 33.2 Комод в разобранном виде / белый /",1491]
["АБ 33.2 Комод в разобранном виде / махагон/",1492]
["АБ 33.2 Комод в разобранном виде / натуральный /",1493]
["АБ 33.2 Комод в разобранном виде / орех /",1494]
["АБ 33.2 Комод в разобранном виде / отбеленный /",1495]
["АБ 33.2 Комод в разобранном виде / салатовый /",1496]
["АБ 33.2 Комод в разобранном виде / светлый орех /",1497]
["АБ 33.2 Комод в разобранном виде / слон. кость /",1498]
["АБ 33.2 Комод в разобранном виде / темный орех/",1499]
["АБ33.4 Комод со столиком для пеленания /белый/",1500]
["АБ33.4 Комод со столиком для пеленания /зеленый/",1501]
["АБ33.4 Комод со столиком для пеленания /махагон/",1502]
["АБ33.4 Комод со столиком для пеленания /натуральный/",1503]
["АБ33.4 Комод со столиком для пеленания /орех/",1504]
["АБ33.4 Комод со столиком для пеленания /отбеленный/",1505]
["АБ33.4 Комод со столиком для пеленания /светлый орех/",1506]
["АБ33.4 Комод со столиком для пеленания /слоновая кость/",1507]
["АБ33.4 Комод со столиком для пеленания /темный орех/",1508]
["АБ 34 Комод с шестью ящиками (белый)",1509]
["АБ 34 Комод с шестью ящиками (натуральный)",1510]
["АБ 34 Комод с шестью ящиками (орех)",1511]
["АБ 34 Комод с шестью ящиками (отбеленный(20))",1512]
["АБ 34 Комод с шестью ящиками (светлый орех)",1513]
["АБ 34 Комод с шестью ящиками (слоновая кость)",1514]
["АБ 34 Комод с шестью ящиками (темный орех)",1515]
["АБ 35 Шкаф для одежды детский  /белый/",1516]
["АБ 35 Шкаф для одежды детский  /натуральный/",1517]
["АБ 35 Шкаф для одежды детский  /орех/",1518]
["АБ 35 Шкаф для одежды детский  /светлый орех/",1519]
["АБ 35 Шкаф для одежды детский  /слоновая кость/",1520]
["АБ 35 Шкаф для одежды детский  /темный орех/",1521]
["АБ 35 Шкаф для одежды детский / махагон",1522]
["АБ 36 Комод \"Бриллиант\" (белый)",1523]
["АБ 36 Комод \"Бриллиант\" (вишня-патина)",1524]
["АБ 36 Комод \"Бриллиант\" (голубой)",1525]
["АБ 36 Комод \"Бриллиант\" (махагон)",1526]
["АБ 36 Комод \"Бриллиант\" (натуральный)",1527]
["АБ 36 Комод \"Бриллиант\" (орех)",1528]
["АБ 36 Комод \"Бриллиант\" (отбеленный)",1529]
["АБ 36 Комод \"Бриллиант\" (розовый)",1530]
["АБ 36 Комод \"Бриллиант\" (светло-зеленый)",1531]
["АБ 36 Комод \"Бриллиант\" (светлый орех)",1532]
["АБ 36 Комод \"Бриллиант\" (слоновая кость)",1533]
["АБ 36 Комод \"Бриллиант\" (темный орех)",1534]
["АБ 55 Полка-вешалка (махагон)",1535]
["АБ 55 Полка-вешалка / орех/",1536]
["АБ 55 Полка-вешалка /белый/",1537]
["АБ 55 Полка-вешалка /голубая/",1538]
["АБ 55 Полка-вешалка /натур/",1539]
["АБ 55 Полка-вешалка /розовая/",1540]
["АБ 55 Полка-вешалка /светлый орех/",1541]
["АБ 55 Полка-вешалка /слоновая кость/",1542]
["АБ 55 Полка-вешалка /темный орех/",1543]
["АБ 56 Ящик для игрушек (белый)",1544]
["АБ 56 Ящик для игрушек (натур)",1545]
["АБ 56 Ящик для игрушек (розовая)",1546]
["АБ 56 Ящик для игрушек (слон)",1547]
["АБ 56 Ящик для игрушек /светлозеленый/",1548]
["АБ 56 Ящик для игрушек /светлый орех/",1549]
["АБ 56 Ящик для игрушек /темный орех/",1550]
["Стол Sprinter / красный бук / 808750",1551]
["Комод пеленальный Four,76* 45* 90 см, цвет- мед 00001180",1552]
["Комод пеленальный Four,76* 45* 90 см, цвет- ром 00000889",1553]
["Кровать Deseree Cot, Д132* Ш72* В109, цвет- отбеленный 00000873",1554]
["Кровать Pali Coccolino Oblo К0004495",1555]
["Комод LUNA 650 нк (какао/гоголь-моголь)",1556]
["Комод LUNA 650 нк (коралл/дымка)",1557]
["Комод LUNA 650 нк (морская бирюза/белый)",1558]
["Комод LUNA 650 нк (слоновая кость)",1559]
["Комод LUNA 650 нк (шафран - белый)",1560]
["Комод LUNA 760 нк (белый)",1561]
["Комод LUNA 760 нк (гоголь-моголь)",1562]
["Комод LUNA 760 нк (коралл/дымка)",1563]
["Комод LUNA 760 нк (морская бирюза/ белый)",1564]
["Комод LUNA 760 нк (слива венгерка - белый)",1565]
["Комод LUNA 760 нк (слоновая кость)",1566]
["Комод LUNA 760 нк (Фиалка\\белый)",1567]
["Комод LUNA 760 нк (шафран - белый)",1568]
["Комод OLIVIA 510 нк (Белый)",1569]
["Комод OLIVIA 510 нк (желто/ белый) шафран-белый",1570]
["Комод OLIVIA 510 нк (слоновая кость)",1571]
["Комод OLIVIA 650 нк (белый)",1572]
["Комод OLIVIA 650 нк (ваниль/зеленая вода)",1573]
["Комод OLIVIA 650 нк (Желтый/ белый) шафран-белый",1574]
["Комод OLIVIA 650 нк (Слива-Венгерка/белый)",1575]
["Комод OLIVIA 650 нк (слоновая кость)",1576]
["Комод OLIVIA 760 нк (белый)",1577]
["Комод OLIVIA 760 нк (желто/ белый) шафран -белый",1578]
["Комод OLIVIA 760 нк (слива венгерка - белый)",1579]
["Комод OLIVIA 760нк (слоновая кость)",1580]
["Кроватка детская VITALIA 125/65 МАЯТНИК НК (Белый)",1581]
["Кроватка детская VITALIA 125/65 МАЯТНИК НК (Орех 506/Слоновая кость)",1582]
["Кроватка детская VITALIA 125/65 МАЯТНИК НК (Слоновая кость)",1583]
["Кроватка детская VITALIA 125/65 МАЯТНИК НК (Шоколад/Слоновая кость)",1584]
["ДЖОВАННИ 120/60 МАЯТНИК (Белый)",1585]
["ДЖОВАННИ 120/60 МАЯТНИК нк(Орех 506)",1586]
["ДЖОВАННИ 120/60 МАЯТНИК нк(Слоновая кость)",1587]
["ДЖОВАННИ 120/60 МАЯТНИК нк(шоколад)",1588]
["Джованни 125/65 Маятник нк (белый)",1589]
["Джованни 125/65 Маятник нк (Орех 506)",1590]
["Джованни 125/65 Маятник нк (Орех шоколадный)",1591]
["Джованни 125/65 Маятник нк (Слоновая кость)",1592]
["Кровать AURA(белый)",1593]
["Кровать AURA(Гоголь-моголь)",1594]
["Кровать AURA(Светлый орех/Гоголь-моголь)",1595]
["Кровать AURA(шоколад\\какао)",1596]
["\"ВЕНЕЦИЯ\" слоновая кость (кровать детская)",1597]
["\"ВЕНЕЦИЯ\" шоколад (кровать детская)",1598]
["ВИННИ белый (кровать детская)",1599]
["ВИННИ натуральный (кровать детская)",1600]
["ВИННИ салатовый (кроватка без ящика)",1601]
["ВИННИ светлый орех (кровать детская)",1602]
["ВИННИ слоновая  кость (кровать детская)",1603]
["ВИННИ темный орех (кровать детская)",1604]
["ВИННИ шоколад (кровать детская)",1605]
["Кровать детская \"ВИННИ\" /маятник/ белый/120*60",1606]
["Кровать детская \"ВИННИ\" /маятник/орех /шоколад/120*60",1607]
["Кровать детская \"ВИННИ\" /маятник/орех/120*60",1608]
["Кровать детская \"ВИННИ\" /маятник/слоновая кость/120*60",1609]
["\"ДЖОВАННИ\" 60/120 кроватка (белый)",1610]
["\"ДЖОВАННИ\" 60/120 кроватка (натуральный)",1611]
["\"ДЖОВАННИ\" 60/120 кроватка (Орех шоколад)",1612]
["\"ДЖОВАННИ\" 60/120 кроватка (светлый орех)",1613]
["\"ДЖОВАННИ\" 60/120 кроватка (темный орех)",1614]
["\"ДЖОВАННИ\" ваниль/зеленая вода  (кровать детская)",1615]
["\"ДЖОВАННИ\" голубой/белый/ (кровать детская)",1616]
["\"ДЖОВАННИ\" желтый/белый/ (кровать детская)",1617]
["\"ДЖОВАННИ\" зеленый/белый (кровать детская)",1618]
["\"ДЖОВАННИ\" салатовая (кроватка без ящика)",1619]
["\"ДЖОВАННИ\" Слива Венгерка/белый/ (кровать детская)",1620]
["\"ДЖОВАННИ\" слоновая кость (кровать детская)",1621]
["\"ДЖОВАННИ\" слоновая кость/св. орех (кроватка)",1622]
["\"ДЖОВАННИ\" темный орех (кровать детская)",1623]
["\"ДЖОВАННИ\" черешня (кроватка детская)",1624]
["\"ДЖОВАННИ\" шафран/белый/ (кровать детская)",1625]
["\"ДЖОВАННИ\" шоколад (кровать детская)",1626]
["САНТА салатовый (кровать детская)",1627]
["САНТА слоновая кость (кровать детская)",1628]
["Кровать детская LUNA  ( белый) /125х65/ декор \"Солнечный берег-Пальма\"",1629]
["Кровать детская LUNA  ( слива венгерка-белый) /125х65/ декор Ай да молодец-Черепаха",1630]
["Кровать детская LUNA  ( слоновая кость) /125х65/ декор Озорные пуговицы-Пуговицы",1631]
["Кровать детская LUNA  ( шафран-белый) /125х65/ декор Мадагаскар-Зебра",1632]
["Кровать детская LUNA  (гоголь-моголь) /125х65/ декор Веселые лапки-Лапки",1633]
["Кровать детская LUNA  (какао/гоголь-моголь) /125х65/ декор Веселые лапки-Лапки",1634]
["Кровать детская LUNA  (коралл/дымка) 125х65/ декор Лесная прогулка-Еж",1635]
["Кровать детская LUNA  (светлый орех/гоголь-моголь) /125х65/ декор Веселые лапки-Лапки",1636]
["Кровать детская LUNA  (фиалка/ белый) /125х65/ декор Отдых в саване-Коала",1637]
["ФИОРЕНТИНА светлый орех",1638]
["ФИОРЕНТИНА слоновая кость",1639]
["ФИОРЕНТИНА тёмный орех",1640]
["ФИОРЕНТИНА шоколад",1641]
["Комплект мягких игрушек Львиная сиеста для детской кроватки ",1642]
["Комплект мягких игрушек Львиная сиеста на комод",1643]
["Комплект мягких игрушек Лягушачья ламбада для детской кроватки",1644]
["Комплект мягких игрушек Морская Баллада для детской кроватки",1645]
["Комплект мягких игрушек Морская Баллада на комод",1646]
["Комплект мягких игрушек Шутки игуаны для детской кроватки ",1647]
["Комплект мягких игрушек Шутки игуаны на комод",1648]
["Постельное белье Львиная сиеста 125*65",1649]
["Постельное белье Лягушачья ламбада 125*65",1650]
["Постельное белье Морская баллада 125*65",1651]
["Постельное белье Шутки игуан 125*65",1652]
["Кровать детская  \" Аленка(маятник)вишня",1653]
["Кровать детская  \" Аленка(маятник)орех",1654]
["Кровать детская  \" Вероника \"  / вишня",1655]
["Кровать детская  \" Вероника с сердечком\"  / вишня",1656]
["Кровать детская  \" Вероника с сердечком\"  / орех",1657]
["Кровать детская  \" Виктория - 2 \"  колесо-качалка  / вишня",1658]
["Кровать детская  \" Виктория - 2 \"  колесо-качалка  / орех",1659]
["Кровать детская  \" Виктория - 2 \" колесо-качалка  / ящик, вишня",1660]
["Кровать детская  \" Виктория - 2 \" колесо-качалка  / ящик, орех",1661]
["Кровать детская  \" Виктория - 2\"  маятник/ вишня",1662]
["Кровать детская  \" Виктория - 2\" маятник/ орех",1663]
["Кровать детская  \" Виктория \"  маятник/ вишня",1664]
["Кровать детская  \" Виктория \"  маятник/ орех",1665]
["Кровать детская  \" Джулия \"  / вишня",1666]
["Кровать детская  \" Джулия \"  / орех",1667]
["Кровать детская  \" Джулия с сердечком \"  / вишня",1668]
["Кровать детская  \" Джулия с сердечком \"  / орех",1669]
["Кровать детская  \" Яна \"  / вишня",1670]
["Кровать детская  \" Яна \"  / орех",1671]
["Кровать детская  \" Яна с сердечком \"  / вишня",1672]
["Кровать детская  \" Яна с сердечком \"  / орех",1673]
["830038-1 Кровать детская скв-8 1 полка 3 ящика маятник венге-белый",1674]
["830039-1 Кровать детская скв-8 1 полка 3 ящика маятник бежевый-белый",1675]
["930011 Кровать-трансформер /белый",1676]
["930015 Кровать-трансформер /клён",1677]
["930016 Кровать-трансформер /бук",1678]
["930017 Кровать-трансформер /орех",1679]
["930019 Кровать-трансформер /слоновая кость",1680]
["930031 Кровать-трансформер /маятник/белый",1681]
["930032 Кровать-трансформер /маятник/желтый+голубой",1682]
["930032-1 Кровать-трансформер /маятник/белый+голубой",1683]
["930032-3 Кровать-трансформер /маятник/голубой",1684]
["930033 Кровать-трансформер /маятник/желтый+салатовый",1685]
["930033-1 Кровать-трансформер /маятник/белый+салатовый",1686]
["930036 Кровать-трансформер /маятник/бук",1687]
["930036/7 Кровать-трансформер /маятник/бук+орех",1688]
["930037 Кровать-трансформер /маятник/орех",1689]
["930038 Кровать-трансформер /маятник/венге (темный орех) !! НОВИНКА !!",1690]
["930038-5 Кровать-трансформер /маятник/венге фасад-береза",1691]
["930038-9 Кровать-трансформер /маятник/венге/фасад слоновая кость",1692]
["930039 Кровать-трансформер /слоновая кость",1693]
["701005 Комод (клён)",1694]
["701006 Комод (бук)",1695]
["701007 Комод (орех)",1696]
["701008 Комод (венге)",1697]
["701106 Комод (бук)",1698]
["110112 Кровать детская (оп. бок., колесо/качалка, голубая)",1699]
["110115 Кровать детская (оп. бок., колесо/качалка, лак)",1700]
["112008 Кровать детская СКВ-1 (опуск.бок,маятник.закр.ящик,тем.орех)",1701]
["114006 Кровать детская СКВ-1 (опуск.бок,маятник, каштан)",1702]
["230111 Кровать детская \"СКВ-2\" (колесо/качалка без ящика) белый",1703]
["230113 Кровать детская \"СКВ-2\" (колесо/качалка без ящика) зеленый",1704]
["230115 Кровать детская \"СКВ-2\" (колесо/качалка без ящика) натур",1705]
["230116 Кровать детская \"СКВ-2\" (колесо/качалка без ящика) каштан",1706]
["230117 Кровать детская \"СКВ-2\" колесо/качалка без яшика, орех",1707]
["230118 Кровать детская \"СКВ-2\" колесо/качалка без яшика, тем.орех",1708]
["230119 Кровать детская СКВ-2 (автостенка,колеса,качалка,накладка ПВХ,слон.кость)",1709]
["231111 Кровать детская \"СКВ-2\" (колесо/качалка/ящик) белый",1710]
["231115 Кровать детская \"СКВ-2\" (колесо/качалка/ящик) натур",1711]
["231116 Кровать детская \"СКВ-2\" (колесо/качалка/ящик) каштан",1712]
["231117 Кровать детская \"СКВ-2\" (колесо/качалка/ящик) орех",1713]
["231118 Кровать детская \"СКВ-2\" (колесо/качалка/ящик) тем.орех",1714]
["232005 Кровать детская \"СКВ-2\" (маятник попер., с закрытым ящиком) натур",1715]
["232006 Кровать детская \"СКВ-2\" (маятник поперечный с закрытым ящиком) каштан",1716]
["232007 Кровать детская \"СКВ-2\" (маятник поперечный с закрытым ящиком) орех",1717]
["232008 Кровать детская \"СКВ-2\" (маятник поперечный с закрытым ящиком) тем.орех",1718]
["234006 Кровать детская \"СКВ-2\" маятник без ящика, каштан",1719]
["234007 Кровать детская \"СКВ-2\" маятник без ящика, орех",1720]
["234008 Кровать детская \"СКВ-2\" маятник без ящика, тем.орех",1721]
["431017 Кровать детская СКВ-4, орех",1722]
["534035 Кровать детская СКВ-5, маятник 5 ящ., береза",1723]
["534036 Кровать детская СКВ-5, маятник 5 ящ., бук",1724]
["534038 Кровать детская СКВ-5, маятник 5 ящ.,венге(темный орех)",1725]
["534039 Кровать детская СКВ-5, маятник 5 ящ.,слоновая кость",1726]
["0115 Стул детский \"Ням-Ням\" (мягкий,лак)",1727]
["0117 Стул детский \"Ням-Ням\" (мягкий,орех)",1728]
["Комод детский Бабочки сьемный пеленальный стол (белый)",1729]
["Комод детский Бабочки сьемный пеленальный стол (слон кость)",1730]
["Комод детский Бабочки сьемный пеленальный стол (шоколад)",1731]
["Кроватка детская Бабочки колесо  (2 со стопором с ящ (белый)",1732]
["Кроватка детская Бабочки колесо  (2 со стопором с ящ (слон кость)",1733]
["Кроватка детская Бабочки колесо  (2 со стопором с ящ (шоколад)",1734]
["Кроватка детская Бабочки маятник поперечный с ящ (белый)",1735]
["Кроватка детская Бабочки маятник поперечный с ящ (слон кость)",1736]
["Кроватка детская Бабочки маятник поперечный с ящ (шоколад)",1737]
["Комод детский Бантики сьемный пеленальный стол (белый)",1738]
["Комод детский Бантики сьемный пеленальный стол (слон кость)",1739]
["Комод детский Бантики сьемный пеленальный стол (шоколад)",1740]
["Кроватка детская Бантики колесо  (2 со стопором с ящ (белый)",1741]
["Кроватка детская Бантики колесо  (2 со стопором с ящ (слон кость)",1742]
["Кроватка детская Бантики маятник поперечный с ящ (белый)",1743]
["Кроватка детская Бантики маятник поперечный с ящ (слон кость)",1744]
["Кроватка детская Бантики маятник поперечный с ящ (шоколад)",1745]
["Кроватка детская Звездочка колесо  (2 со стопором с ящ (белый)",1746]
["Кроватка детская Звездочка колесо  (2 со стопором с ящ (слон кость)",1747]
["Кроватка детская Мышонок колесо  (2 со стопором с ящ (белый)",1748]
["Кроватка детская Мышонок колесо  (2 со стопором с ящ (слон кость)",1749]
["Кроватка-трансформер Чунга-Чанга маятник поперечный (белый)",1750]
["Кроватка-трансформер Чунга-Чанга маятник поперечный (слон.кость)",1751]
["Автокресло LIMOUSINE группа 1/2/3 (kg. 9-36)",1752]
["автомобильное сиденье BE ONE ",1753]
["Коляска TUO TRAVEL SYSTEM BLUE CLASSIC",1754]
["Коляска прогулочная TOKIO зелено-серый",1755]
["Коляска прогулочная TOKIO серо-синий",1756]
["Коляска-трость Primavera B/R",1757]
["Коляска-трость Primavera OR",1758]
["Прогулочная коляска B-Buggy песочная  ",1759]
["Прогулочная коляска B-Buggy розовая",1760]
["Прогулочная коляска B-Buggy синяя",1761]
["9900058978 AMY BRILLANTINO пеленальный комод",1762]
["9900060806 SONNY пеленальный комод",1763]
["9900062205 MONELLO BIS пеленальный комод",1764]
["9900229103 FAVOLA пеленальный комод",1765]
["9900229105 FAVOLA пеленальный комод",1766]
["Креслице-качалка DONDOLO красно-синее",1767]
["9900159705 COURE DI MAMMA Кроватка",1768]
["9900168803 SONNY Кроватка (бук)",1769]
["9900169805 BACIO Кроватка",1770]
["Стульчик для кормления B-CHAIR красный",1771]
["Стульчик для кормления TUTTOPAPPA красный с синим",1772]
["Стульчик для кормления TUTTOPAPPA оранжевый с красным",1773]
["Стульчик для кормления TUTTOPAPPA синий с оранжевый",1774]
["9900020003 IL SEDIOLONE Стульчик деревянный",1775]
["9900020006 IL SEDIOLONE Стульчик деревянный",1776]
["9900020903 LU-LU Стульчик  деревянный",1777]
["9900020906 LU-LU Стульчик  деревянный",1778]
["Ходунки BELGIRETTO красный",1779]
["DS-702А Игровой центр \"Дом с горкой и качели\"",1780]
["DS-703 Игровой центр \"Дом с горкой и качели\"",1781]
["DS-707 Качели \"Жираф\" для одного ребенка",1782]
["DS-710 Качели \"Жираф-Дракон\" для двоих детей",1783]
["HN-707 Детская игровая зона с горкой",1784]
["HN-708 Игровой центр с горкой+качели",1785]
["HN-709 Игровой центр \"Маленький замок\" с горкой+качели",1786]
["HNP-715 Горка \"Слон\" с баскетбольным кольцом",1787]
["HNP-716 Горка \"Дельфин\" с баскетбольным кольцом",1788]
["JM-701 Игровой комплекс+качели с муз. панелью",1789]
["JM-702 Качели стационарные с муз. панелью",1790]
["JM-706 Горка \"Слон\" с баскетбольным кольцом (2 кор)",1791]
["JM-706W Горка-волна \"Слон\" с баскетбольным кольцом",1792]
["JM-802А Игровой домик (2 кор)",1793]
["JM-804В Игровой комплекс \"Мульти-Хаус\" с горкой, качел. и баскет. к-цо (3 кор)",1794]
["JM-807-1 стол+два стула",1795]
["JM-807H-1 стол+два стула",1796]
["JM-831P Игровая зона+качели с муз. панелью \"Винни Пух\"",1797]
["JM-835P Горка с баскетбольным кольцом \"Винни Пух\"",1798]
["JM-871 Игровой комплекс горка-волна+качели с муз. панелью",1799]
["308 Бассейн - лодочка пластик",1800]
["309 Качалка для троих Пароход Marian Plast SEESAW",1801]
["311 Бассейн - лодочка затененный",1802]
["336 Кукольный театр",1803]
["337 Качелька -лошадка",1804]
["360 Дом игровой \"Домик с верандой\"",1805]
["372 Качели  подвесные  пластик Marian - Plast",1806]
["374 Песочница - бассейн 2 в 1 Marian Plast",1807]
["375 Пластиковый игровой столик",1808]
["377 Горка - Башня Marian Plast пластмассовая",1809]
["607 Горка - Пеликан",1810]
["609 Качелька на троих",1811]
["662 Домик разборный",1812]
["663 Домик - кухня",1813]
["664 Домик - гараж",1814]
["665 Домик - гараж+кухня",1815]
["666 Домик с двумя пристройками",1816]
["12299 Подушка с игрушкой  \"Белль\" /36*36, полиамид/",1817]
["12300 Подушка с игрушкой  \"Ариель\" /36*36, полиамид/",1818]
["12881 Подушка декоративная Ослик Иа /d-90см,полиамид /",1819]
["12882 Подушка декоративная Тигра /d-90см,полиамид /",1820]
["13234 Подушка -светильник \"Синдарелла\" /36*36, полиамид/",1821]
["13297 Подушка \"Тигра на полянке\" 36*36/ полиамид",1822]
["К Подушка с игрушкой  Ушастик 36*36 / полиамид 11927",1823]
["Подушка \"Минни 3D\" 12265",1824]
["Подушка-светильник \"Бабочка\" серия \"Пух\" 28*42/полиамид 13263",1825]
["Подушка-светильник \"Микки\" (30*43) 11183 /полиамид",1826]
["Подушка-светильник \"Минни\" (30*43) 11184 /полиамид",1827]
["BB 86937 CR Кровать игровая с шатром \"Машины\"",1828]
["ST 99079 CR Набор \"Машины\" 10 предметов",1829]
["ST 99080 PS Набор \"Принцесса\"  10 предметов",1830]
["ST 99100 FR Набор \"Феи\" 10 предметов",1831]
["TB 83215 LM Короб для игрушек \"Русалочка\"",1832]
["TB 83299PS Короб для игрушек \"Принцесса\"",1833]
["TB 83392 FR Короб для игрушек \"Феи\"",1834]
["TB 87261 MM Короб для игрушек \"Микки и его друзья\"",1835]
["TF 86553 PS толик туалетный со стулом \"Белль\"",1836]
["Короб для игрушек \"Принцесса\" TB 87295 PS",1837]
["Короб для игрушек \"Феи\" TB 84544 FR",1838]
["ТТ 86528 PS Зеркало настенное \"Принцессы\"",1839]
["1001/1016 Пуф надувной малый Princess 250*250 /розовый",1840]
["1002/1022 Пуф надувной большой Princess 350*280 /розовый",1841]
["1078/1301 Подушка мягкая круглая Mickey 38см",1842]
["1078/1303Подушка мягкая круглая Winnie 38см",1843]
["Кресло надувное малое  Винни 500*450*450 / голубой 1111/1126",1844]
["Кресло надувное малое  Спящая красавица 500*450*450 / розовый 1111/1129",1845]
["Кресло надувное малое  Тигрюля 500*450*450 / голубой 1111/1125",1846]
["Кресло надувное малое Mickey 50*45*45/черный 1111/1112",1847]
["Кресло надувное малое Minnie  50*45*45/розовое 1111/1228",1848]
["Подушка  круглая Winnie 35см 1255/1309",1849]
["Подушка  круглая Тачки 35см 1255/1308",1850]
["Подушка  круглая Тигрюля 35см  1255/1311",1851]
["Подушка  круглая Ушастик 35см  1255/1312",1852]
["Подушка  круглая Хрюник 35см  1255/1310",1853]
["Подушка 3D Винни 30 см 1446/1408",1854]
["Подушка 3D Тачки 30 см 1446/1407",1855]
["Подушка квадратная Винни 35см 1334/1415",1856]
["Подушка квадратная Золушка 35см 1334/1412",1857]
["Подушка квадратная Спящая красавица 35см 1334/1413",1858]
["Подушка квадратная Тигрюля 35см 1334/1414",1859]
["Пуф надувной большой Winniе  350*280 / зеленый 1002/1088",1860]
["Пуф надувной большой Тачки 350*280 /красный 1002/1087",1861]
["Пуф надувной большой Тигрюля  350*280 / голубой 1002/1089",1862]
["Пуф надувной большой Ушастик  350*280 / розовый 1002/1086",1863]
["Пуф надувной большой Хрюник  350*280 / зеленый 1002/1085",1864]
["Т505LXB Кровать-машина Turbo Lux c фарами (черная)",1865]
["00497.00 Подвеска муз.для кроватки \"Мишка на качельках\"",1866]
["00901.00 Игрушка мягконабивная \"Игровой коврик 4 в1\"",1867]
["01191.00 Подвеска \"Звезда\"",1868]
["01192.00 Подвеска \"Луна\"",1869]
["02290.00 Подвеска \"Сладкие сны\" /мобиль 2012",1870]
["21430.00 Подвеска \"Мамина колыбельная\"3 в 1",1871]
["24261.00 Подвеска \"Луна,спокойной ночи!\" девочка",1872]
["24262.00 Подвеска \"Луна,спокойной ночи!\" мальчик",1873]
["24271.00 Проектор \"Первые грезы\" розовый",1874]
["24272.00 Проектор \"Первые грезы\" голубой",1875]
["27260.00 Подвеска музыкальная для кровати \"Зайчонок\"",1876]
["60008.00 Подвеска \"Цветок музыкальный\" !!!НОВИНКА!!!",1877]
["60009.00 Подвеска \"Вертолет музыкальный\"",1878]
["60046.00 Подвеска музыкальная для кроватки \"Мягкая овечка\"",1879]
["60047.00 Подвеска музыкальная для кроватки \"Мягкий мишка\"",1880]
["60049.00  Игрушка развивающая мягкая \"Мишка Sweetheart\"",1881]
["60070.20 Набор My First Step Up",1882]
["67072 000 000 Игрушка развивающая \"Подвеска.Сладкие мечты\" / мобиль.",1883]
["67099 000 000 Подвеска \"Пчелки\" / мобиль",1884]
["67161.00 Бабочка музыкальная мягкая",1885]
["69607.20 Игрушка мягконабивная \"Мишка музыкальный\"",1886]
["69608.20 Игрушка мягконабивная \"Котенок музыкальный\"",1887]
["71167.00 Саксофон",1888]
["71200.10 Подвеска \"Волшебные звезды/мобиль\" (розовая)",1889]
["71200.20 Подвеска \"Волшебные звезды/мобиль\" (голубая)",1890]
["71312.00 ИГрушка мягконабивная \"Бабочка лиловая\"",1891]
["71333.00 Игрушка развивающая \"Подвеска\"Мишка музыкальный\"\"",1892]
["71342.00 Игрушка развивающая \"Подвеска \"Щенок Sleep & Play\"",1893]
["71344.00 Игрушка мягконабивная \"Коврик игровой с прорезывателем \"Слоненок\"",1894]
["71345.00 Игрушка мягконабивная \"Коврик игровой с прорезывателем\"Улитка\" !!!НОВИНКА!!!",1895]
["71346.00 Игрушка мягконабивная \"Котенок оранжевый\"",1896]
["71347.00 Игрушка мягконабивная \"Коврик игровой с прорезывателем \"Корова\" !!!НОВИНКА!!!",1897]
["71719.00 Подвеска \"Весна\" (мобиль)",1898]
["71866.00 Подвеска \"Relax&Play\"",1899]
["00027.00 Игрушка развивающая Гамма \"Схвати легко\"",1900]
["00028.00 Игрушка развивающая Бета \"Схвати легко\"",1901]
["00905.00 Игрушка развивающая \"Мячик мягкий музыкальный\"",1902]
["00906.00 Игрушка развивающая \"Лягушонок подвижный\"",1903]
["00907.00 Игрушка развивающая \"Обезьянка\"",1904]
["60010 Игрушка развивающая Пингвин музыкальный",1905]
["60062.00 Игрушка развивающая Медвежонок \"Sweet Love Teddy\"",1906]
["60063.00 Игрушка развивающая Зайчонок \"Sweet Love Bunny\"",1907]
["60065.00 Игрушка развивающая Овечка \"Sweet Love Lаmb\"",1908]
["61411.00 Игрушка развивающая \"Слоненок\"",1909]
["61412.00 Игрушка развивающая \"Жираф\"",1910]
["61413.00 Игрушка развивающая \"Лев\"",1911]
["65408 200 000 Гимнастический центр 3 в 1 \"DELUXE\"",1912]
["65472 000 000 Игрушка развивающая Гусеница мягкая",1913]
["65489 200 000 Игрушка развивающая Карусель",1914]
["66151.00 Игрушка развивающая мягкая \"Лев \" для прогулочной коляски",1915]
["67175.20 Игрушка развивающая TWIST AND TURN !!!НОВИНКА!!!",1916]
["68795.00 Мини-фотоаппарат \"Радуга\"",1917]
["69303 200 000 Игрушка развивающая \"Ключ-радуга\"",1918]
["70680.00 Игрушка развивающая \"Музыкальная сумочка\"",1919]
["71166.00 Скрипка",1920]
["71771.10 Игрушка развивающая Книжка Lullaby розовая",1921]
["71771.20 Игрушка развивающая Книжка Lullaby голубая",1922]
["00032.00 Утенок для ванны",1923]
["00038.00 Игрушка для ванны Капитан Squirt",1924]
["00995.00.18 Говорящий ключик",1925]
["51810 Игрушка пласт.муз. Детское радио",1926]
["51830.00 Игрушка пласт., муз. \"Детский телефончик\" !!!НОВИНКА!!!",1927]
["51850.00 Игрушка мягкая Волшебный краб для ванной",1928]
["66698.00 Телефон \"Привет малыш\"",1929]
["66699.20 Телефон музыкальный с картинками",1930]
["68900.20 Телефон музыкальный",1931]
["69029 Игрушка развивающая Кручу-верчу",1932]
["70070 Игрушка развивающая Видеотелефон Звони и узнавай",1933]
["70071.00 Игрушка развивающая \"Корова в космическом корабле\"",1934]
["70106.00 Игрушка для ванны \"Остров пузырьков\"",1935]
["70285.00 Игрушка для коляски \"Маленький водитель\"",1936]
["70306.00 Игрушка для ванны \"Счастливый бегемотик\"",1937]
["71408.00.18 Игрушка равивающая Говорящий телефон (рус/англ)",1938]
["71697.00 Игрушка развивающая \"Лягушка\"",1939]
["71709.00 Игрушка \"Танцующие животные\" для коляски",1940]
["72374.00 Игрушка пласт., муз. \"Веселый бегемотик\" с вибро !!!НОВИНКА!!!",1941]
["9950.00.18 Говорящий ключик",1942]
["60078.00 Говорящий куб рус/англ",1943]
["60703.20 Машина-каталка 4 в 1 QAUTTRO зеленая",1944]
["60704.00 Столик музыкальный для игр\"Звуки и формы\"",1945]
["65261 000 000 Игрушка развивающая \"Игровой центр\" Ходунки 2 в 1",1946]
["65262.00 Игровой центр-ходунки 2 в 1 \"Пингвин\"",1947]
["67068.10 Машина-каталка 4 в 1 Girl",1948]
["67068.20 Машина-каталка 4 в 1 Boy",1949]
["67074.00 Набор \"Детеныши саванны\"",1950]
["67076.00 Набор \"Домик\"",1951]
["67078.00 Набор \"Куб Контейнер\"",1952]
["69033.00.18 Говорящий дракон",1953]
["69071 Улитка на колесиках Вперед ребята",1954]
["69072 Божья коровка на колесиках Вперед ребята",1955]
["71517.00 Ходунки Chicco Ergo Gym",1956]
["79110.27 Качельки Polli Swing Up TOBACCO  !!!НОВИНКА!!!",1957]
["60022.00 Весёлый грузовичок \"Firetruck\"",1958]
["60023.00 Весёлый грузовичок \"Dumper Truck\"",1959]
["60068.00 Игрушка музыкальная \"Гитара\"",1960]
["60077.00 Игрушка развивающая \"Пианино DJ Mixer\"",1961]
["60079.00 Говорящая ферма рус/англ new",1962]
["60084.00 Говорящий водитель англ./рус.",1963]
["60085.00 Говорящий видеотелефон рус/анг",1964]
["6321610 Игрушка развивающая Ключи на кольце Pink",1965]
["6321620 Игрушка развивающая Ключи на кольце Blue",1966]
["64273 Игрушка развивающая \"Домик для животных\"",1967]
["68007 000 000 Машина-каталка \"Speedy\"",1968]
["68288.20 Пианино DJ",1969]
["69006 Веселый грузовичек Развозчик пиццы",1970]
["690060 Веселый грузовичок Развозчик пиццы",1971]
["690230 Полицейская машина с зарядным устройством и р/у",1972]
["690250 Пожарная машина с зарядным устройством и р/у",1973]
["69032.000.180 Игрушка пласт.муз. Говорящая набор Плотник рус/анг",1974]
["70075.00 Велосипед",1975]
["70603 000 000 Лошадка Rodeo",1976]
["70611.00 Игрушка развивающая \"Экскаватор с ковшом\"",1977]
["717070 Игрушка развивающая Spring Roller",1978]
["00388.00 Турбо-мотоцикл Ducalti",1979]
["00388.20 Турбо-мотоцикл Ducalti(чёрный)",1980]
["60952.00 Машинка Johnny с д/у",1981]
["61759.00 Машинка \" Билли-большие колеса \"",1982]
["61759.20 Машинка \" Билли-большие колеса красная",1983]
["61782.00 Турбо-машина \"Wild\"",1984]
["61783.00 Турбо-машина \"Супер Биг\"",1985]
["61784.00 Турбо-машина",1986]
["68451.00 Джип оранжевый с радиоуправлением",1987]
["690210 игрушка  DUCATI TURBO TOUCH со сменной панелью",1988]
["69030.000.180 Игрушка пласт.муз. Говорящая кухня рус/анг",1989]
["69238.00 Кабриолет с радиоуправлением",1990]
["    Акция (263) MAXI Развивающий коврик ЗООСАД + ПОДАРОК (413) Мобиль Веселая Африка ",1991]
["   Акция (413) Мобиль Веселая Африка + подарок (405) Развивающая игрушка \"Лягушонок Френки\"",1992]
["  Акция (350) Дуга-трансформер СОЛНЕЧНАЯ+(419) Малая погремушка Солнышко ",1993]
[" Акция (431) Многофункциональный мобиль БУМ-БОКС + подарок",1994]
["211 Дуга музыкальная \"Тропики\" (зеленая) (6шт)",1995]
["243 Развивающий детский центр, двусторонний, музыкальный (6шт)",1996]
["254 Дуга музыкальная \"Река\" (голубая) (6шт)",1997]
["263 Музыкальный коврик с игровой подушечкой \"Зоосад\" (6шт)",1998]
["271 Интерактивная игра для использования в автомобиле \"Ферма\" (свет,музыка)",1999]
["280 Развивающая игрушка \"Зайчик- колокольчик\" (72шт)",2000]
["338 Игрушка- собачка Фред \"Догони меня\" (6шт)",2001]
["350 Дуга развивающая \"Солнечная\" для коляски и автокресла",2002]
["369 Развивающий маленький коврик \"Божья коровка\"",2003]
["370 Развивающий маленький коврик \"Лягушка\"",2004]
["372 Развивающий коврик\"Остров поющей обезьянки\" (6шт)",2005]
["376 Музыкальный мобиль \"Остров сладких грёз\" с ночниками (6шт)",2006]
["381 Детская дуга музыкальная с 3 игрушками розовая",2007]
["384 Развивающая игрушка \"Гусеничка\" (вибрирует) (72шт)",2008]
["385 Развивающая игрушка \"Цветочек\"",2009]
["386 Развивающая игрушка",2010]
["387 Развивающая игрушка \" Морской котик\" ( гремит)",2011]
["390 Развивающая игрушка- карусель \"Веселые джунгли\"",2012]
["391 Игрушка- собачка Фиона \"Догони меня\" серия \"Tiny Princess\"",2013]
["392 Развивающий коврик \"Tiny Princess\" (6шт)",2014]
["393 Интерактивная развивающая книжка \"Tiny Princess\"",2015]
["396 Развивающий коврик \"Солнечный денёк\"",2016]
["397 Коврик типа Travel  САМЫЙ БОЛЬШОЙ",2017]
["399 Музыкальный ночник \"ДЖУНГЛИ\"",2018]
["400 Баунсер (вибрирующее кресло с дугами) (3шт)",2019]
["402 Развивающая игрушка \"Гиппопотам Гарри\"",2020]
["403 Развивающая игрушка \"Слоненок Элл\"",2021]
["404 Развивающая игрушка \"Слоненок Елис\"",2022]
["405 Развивающая игрушка \"Лягушонок Френки\"",2023]
["408 Развивающие коврики \"Разноцветное САФАРИ\" (3шт)",2024]
["409 Развивающая игрушка Ананасик Питер, серия \"Друзья фрукты\" (48шт)",2025]
["410 Развивающая игрушка клубничка Салли, серия \"Друзья фрукты\"",2026]
["413 Универсальный музыкальный мобиль \"Веселая Африка\" (6шт)",2027]
["414 Travel азвивающий коврик \"Мои маленькие открытия\"",2028]
["417 Универсальный музыкальный мобиль \"МОЯ ПРИНЦЕССА\"",2029]
["419 Малая погремушка СОЛНЫШКО (72шт)",2030]
["420 Малая погремушка ЦВЕТОЧЕК (72шт)",2031]
["421 Баунсер МОЯ ПРИНЦЕССА",2032]
["422 Малая погремушка ЗВЕЗДОЧКА (72шт)",2033]
["423 Подвес-погремушка овечка ЛИЛИ",2034]
["424 Люлька- баунсер 3 В 1 (1шт)",2035]
["427 Подвес-погремушка теленок КУЗЯ (6шт)",2036]
["428 Подвес-погремушка бабочка МЭРИ (6шт)",2037]
["431 Многофункциональный мобиль БУМ-БОКС (3шт)",2038]
["432 МОЯ ПЕРВАЯ КНИЖКА двусторонняя книжка-раскладушка НОВЫЙ ДИЗАЙН",2039]
["433 Дуга-трансформер МОЯ ПРИНЦЕССА (6шт)",2040]
["435 Подвес-колокольчик бабочка СОФИ",2041]
["436 MAXI Развивающий коврик\"Моя принцесса\" NEW (3шт)",2042]
["437 Многофункциональный  мобиль БУМБОКС серия МОЯ ПРИНЦЕССА",2043]
["438 ВЕСЕЛАЯ КАРУСЕЛЬ - Механический подвес на коляску-комплектация TRAVEL",2044]
["439 Подвес-погремушка бобрик БИЛЛИ (72шт)",2045]
["440 Подвес-погремушка ежик ХАЙДИ",2046]
["441 Электронная подвесная игрушка краб СЕБАСТИАН (12шт)",2047]
["442 КЛАССИЧЕСКИЙ мобиль ЛЕСНОЕ ОЗЕРО",2048]
["443 STANDART развивающий коврик ЛЕСНОЕ ОЗЕРО",2049]
["444 МОЯ ПЕРВАЯ КНИЖКА двусторонняя книжка-раскладушка серии МОЯ ПРИНЦЕССА (24шт)",2050]
["446 Игрушка-собачка Фрэд \"Догони меня\" Новый дизайн",2051]
["447 Дуга-трансформер ЛЕСНОЕ ОЗЕРО",2052]
["448 Текстурированая книжка-подвеска ЛЕСНОЕ ОЗЕРО",2053]
["453 Люлька-баунсер 3 в 1 МОРЕ",2054]
["454 Мобиль типа EXTRA ВОЛШЕБНАЯ ЛАМПА",2055]
["455 Люлька-баунсер 3 в 1 САД (2 ПОКОЛЕНИЕ)",2056]
["KBA16221 Игрушка-подвеска \"Кит\"",2057]
["KBA16222 Игрушка-подвеска \"Цветочек-зеркало\"",2058]
["  АКЦИЯ! KBA2021 Игрушка-подвеска Змейка (гремит)+Игрушкаподвеска Кит",2059]
["  АКЦИЯ!! KBA2224 Игрушка-подвеска Цветочек+Игрушка подвеска Маленькая рыба",2060]
["KA10206 Развивающий ботинок с зеркалом",2061]
["KA10256 Коврик-сиденье в коляску (с дугами) 90*84*9 см",2062]
["KA10308 Набор для коляски \"Пчелка\" (пластик)",2063]
["KA10494 Развивающая мягкая игрушка \"Гусеничка с прорезывателем\"",2064]
["KA10504 Музыкальная погремушка на кровать \"Слоник\"",2065]
["KA10572 Пчелка подвеска (вибрирует)",2066]
["RP50290 Подвеска-книжка \"Краб\"",2067]
["RP50291 Подвеска-книжка \"Черепаха\"",2068]
["RP50292 Подвеска-книжка \"Кит\"",2069]
["RP50293 Подвеска-книжка \"Осьминог\"",2070]
["КА616 Леди Кроко Блоко",2071]
["71858 подвеска с шариками (в ас-те 3 шт.) ",2072]
["1168 Игрушка мягкая Baby Sshh",2073]
["2037T \"Игрушка- транспортное средство в ассортименте (автомобиль, вертолет, самолет) ",2074]
["2161 \"Игрушка для ванной \"Бегемотик на катамаране\" (от 12 мес.)",2075]
["2712 Игрушка для ванной \"Поющая Черепашка\" (от 12 м.)",2076]
["2755 Игрушка для ванной \"Музыкальный Пингвин\" (от 12 м.)",2077]
["3932 Игрушка для ванной \"Стиральная машина\" (от 12 м.)",2078]
["70036 Веселые зверушки (Цыпленок, Коровка, Овечка)",2079]
["71162 Игровой н-р д/ ванны \"Популярные Медведи- сноубордисты\" (от 12 м.)  ",2080]
["71501 Игрушка для ванной \"Забавный щенок\"",2081]
["71502 To Игрушка д/ ванны Медведь ",2082]
["71922 Разборная улитка",2083]
["J9403 \" Маленькие человечки\" Остров пиратов",2084]
["K0727 Маленькие Человечки \"Животные на ферме\" в ассорт.",2085]
["T6076 \"Морские чудеса\" музыкальный стол",2086]
["T7178 \"Веселые гонщики\" машинки в ассортименте",2087]
["V2513 \"МАЛЕНЬКИЕ ЧЕЛОВЕЧКИ\" набор машинок (2 шт. в упаковке) в ассортименте",2088]
["V4724 Corolle \"Гранатовый Эльф\" кукла",2089]
["V4729 Corolle \"Небесный цвет\" кукла",2090]
["V4730 Corolle \"Небесный Эльф\" кукла",2091]
["Колыбель -качалка \"Eiite\" 4 в 1 Lilac",2092]
["Колыбель -качалка \"Eiite\" 4 в 1 Satin",2093]
["Колыбель 3014 LOL",2094]
["Колыбель 3046 HAN",2095]
["Колыбель 3050 LIL (4 в 1, с пультом)",2096]
["Колыбель 3050 SWT (4 в 1, с пультом)",2097]
["Колыбель 3060 BTL (3 в 1, с пультом)",2098]
["Колыбель 3060 TFS (3 в 1, с пультом) беж",2099]
["Вкладыш МамаРу !!!НОВИНКА!!!",2100]
["Кресло- качалка МамаРу- голубой плюш",2101]
["Кресло- качалка МамаРу- зеленый плюш",2102]
["Кресло- качалка МамаРу- мульти плюш",2103]
["Кресло- качалка МамаРу- серебристая",2104]
["Кресло- качалка МамаРу- серый плюш",2105]
["Кресло- качалка МамаРу- черная",2106]
[" Детская коляска Jedo Bartatino Alu Plus (шасси серебристая)",2107]
[" Детская коляска Jedo Bartatino Alu Plus D.S. ((люлька со стразами, шасси серебристая)",2108]
[" Детская коляска Jedo Bartatino Alu Plus S.E. (шасси белая, бежевая, черная)",2109]
[" Детская коляска Jedo Bartatino Alu Plus S.E. D.S. (люлька со стразами, шасси белая, беж., черная",2110]
[" Детская коляска Jedo Fyn 4DS  D.C. (люлька со стразами, шасси серебристая)",2111]
[" Детская коляска Jedo Fyn 4DS (шасси серебристая)",2112]
[" Детская коляска Jedo Fyn 4DS S.E.  D.C. (люлька со стразами, шасси белая, бежевая, черная)",2113]
[" Детская коляска Jedo Fyn 4DS S.E. (шасси белая, бежевая, черная)",2114]
[" Детская коляска Jedo Memo Alu Plus S.E. (шасси белая, бежевая, черная)",2115]
[" Шасси Jedo Bartatino Alu Plus ",2116]
[" Шасси Jedo Bartatino Alu Plus S.E.  беж",2117]
[" Шасси Jedo Bartatino Alu Plus S.E. белая",2118]
[" Шасси Jedo Bartatino Alu Plus S.E. черная",2119]
[" Шасси Jedo Fyn 4DS S.E. бежевый",2120]
[" Шасси Jedo Fyn 4DS S.E. белый",2121]
[" Шасси Jedo Fyn 4DS S.E. черный",2122]
[" Шасси Jedo Fyn 4DS серебристый",2123]
["Детская люлька Jedo 140",2124]
["Детская люлька Jedo 142",2125]
["Детская люлька Jedo 161",2126]
["Детская люлька Jedo 184",2127]
["Детская люлька Jedo 198",2128]
["Детская люлька Jedo 201",2129]
["Детская люлька Jedo 203",2130]
["Детская люлька Jedo 206",2131]
["Детская люлька Jedo 207",2132]
["Детская люлька Jedo 213",2133]
["Детская люлька Jedo 216",2134]
["Детская люлька Jedo 223",2135]
["Детская люлька Jedo 228",2136]
["Детская люлька Jedo 231",2137]
["Детская люлька Jedo 233",2138]
["Детская люлька Jedo 235",2139]
["Детская люлька Jedo 236",2140]
["Детская люлька Jedo 243",2141]
["Детская люлька Jedo 306",2142]
["Детская люлька Jedo 308",2143]
["Детская люлька Jedo 316",2144]
["Детская люлька Jedo 400 (синий)",2145]
["Детская люлька Jedo 401 (розовый)",2146]
["Детская люлька Jedo 402 (голубой) ",2147]
["Детская люлька Jedo 403 (белый)",2148]
["Детская люлька Jedo 404 (бежевый)",2149]
["Детская люлька Jedo memo 302",2150]
["Коляска пр. Capella S-709WF Сибирь (ал.рама,скл.1 рук, перек.ручк. 2 накид/ног(демис+зим)(аква+сер)",2151]
["Коляска пр. Capella S-709WF Сибирь (ал.рама,скл.1 рук, перек.ручк. 2 накид/ног(демис+зим)(беж+корич",2152]
["Коляска пр. Capella S-709WF Сибирь (ал.рама,скл.1 рук, перек.ручк. 2 накид/ног(демис+зим)(красн+сер)",2153]
["Коляска пр. Capella S-709WF Сибирь (ал.рама,скл.1 рук, перек.ручк. 2 накид/ног(демис+зим)(с.сер+сер)",2154]
["Коляска пр. Capella S-709WF Сибирь (ал.рама,скл.1 рук, перек.ручк. 2 накид/ног(демис+зим)(син+сер)",2155]
["Коляска пр.Capella S-802WF \"Сибирь\"(ал.рама,съем.бамп.,скл.1 рук,2 н/ног(демис+зим)10,7кг(аква+сер)",2156]
["Коляска пр.Capella S-802WF \"Сибирь\"(ал.рама,съем.бамп.,скл.1 рук,2 н/ног(демис+зим)10,7кг(беж+корич)",2157]
["Коляска пр.Capella S-802WF \"Сибирь\"(ал.рама,съем.бамп.,скл.1 рук,2 н/ног(демис+зим)10,7кг(лайм+сер)",2158]
["Коляска пр.Capella S-802WF \"Сибирь\"(ал.рама,съем.бамп.,скл.1 рук,2 н/ног(демис+зим)10,7кг(орхидея)",2159]
["Коляска пр.Capella S-802WF \"Сибирь\"(ал.рама,съем.бамп.,скл.1 рук,2 н/ног(демис+зим)10,7кг(с.сер+сер)",2160]
["Коляска пр.Capella S-802WF \"Сибирь\"(ал.рама,съем.бамп.,скл.1 рук,2 н/ног(демис+зим)10,7кг(син+сер)",2161]
["Коляска пр.Capella S-803WF \"Сибирь\"(ал.рама,съем.бамп.,скл.1 рук,2 н/ног(демис+зим)10,7кг(беж+корич)",2162]
["Коляска пр.Capella S-803WF \"Сибирь\"(ал.рама,съем.бамп.,скл.1 рук,2 н/ног(демис+зим)10,7кг(красн+сер)",2163]
["Коляска пр.Capella S-803WF \"Сибирь\"(ал.рама,съем.бамп.,скл.1 рук,2 н/ног(демис+зим)10,7кг(с.сер+сер)",2164]
["Коляска пр.Capella S-803WF \"Сибирь\"(ал.рама,съем.бамп.,скл.1 рук,2 н/ног(демис+зим)10,7кг(синий+сер)",2165]
["Коляска прог.Capella S-901WF Air \"Сибирь\" (ал.рама,мех.спин,скл.1 рук,2 н/ног(демис+зим)(крас+сер)",2166]
["Коляска прог.Capella S-901WF Air \"Сибирь\"(ал.рама,мех.спин,скл.1 рук,2 н/ног(демис+зим)(беж+корич)",2167]
["Коляска прог.Capella S-901WF Air \"Сибирь\"(ал.рама,мех.спин,скл.1 рук,2 н/ног(демис+зим)(орхидея+сер)",2168]
["Коляска прог.Capella S-901WF Air \"Сибирь\"(ал.рама,мех.спин,скл.1 рук,2 н/ног(демис+зим)(с.сер+сер)",2169]
["Коляска- прогулка ОРИГАМИ база (серый чехол)",2170]
["Сумка с зарядкой на коляску оригами",2171]
["Чехол на коляску Оригами - голубой",2172]
["Чехол на коляску Оригами - зеленый",2173]
["Чехол на коляску Оригами - красный",2174]
["Чехол на коляску Оригами - розовый ",2175]
["Чехол на коляску Оригами - черный",2176]
["129-SK Коляска детская ROAN MARITA",2177]
["19-SK Коляска детская  ROAN MARITA",2178]
["20-SK Коляска детская ROAN MARITA",2179]
["550 Коляска детская  ROAN MARITA",2180]
["554 Коляска детская  ROAN MARITA",2181]
["555 Коляска детская  ROAN MARITA",2182]
["559 Коляска детская ROAN MARITA",2183]
["925 Коляска детская  ROAN MARITA",2184]
["926 Коляска детская  ROAN MARITA",2185]
["947 Коляска детская ROAN MARITA",2186]
["949 Коляска детская  ROAN MARITA",2187]
["957 Коляска детская  ROAN MARITA",2188]
["962 Коляска детская ROAN MARITA",2189]
["A-20 Коляска детская ROAN MARITA",2190]
["B-SK Коляска детская  ROAN MARITA",2191]
["BP-1 Коляска детская ROAN MARITA",2192]
["BP-2 Коляска детская ROAN MARITA",2193]
["BP-3 Коляска детская ROAN MARITA",2194]
["BP-4 Коляска детская  ROAN MARITA",2195]
["BP-5 Коляска детская  ROAN MARITA",2196]
["BP-7 Коляска детская  ROAN MARITA",2197]
["C-SK Коляска детская  ROAN MARITA",2198]
["K - 2 Коляска детская  ROAN MARITA",2199]
["S-100 Коляска детская  ROAN MARITA",2200]
["S-103 Коляска детская  ROAN MARITA",2201]
["S-107 Коляска детская  ROAN MARITA",2202]
["S-110 Коляска детская  ROAN MARITA",2203]
["S-111 Коляска детская  ROAN MARITA",2204]
["S-112 Коляска детская  ROAN MARITA",2205]
["S-114 Коляска детская  ROAN MARITA",2206]
["S-115 Коляска детская  ROAN MARITA",2207]
["S-121 Коляска детская ROAN MARITA",2208]
["S-122 Коляска детская ROAN MARITA",2209]
["S-123 Коляска детская ROAN MARITA",2210]
["S-124 Коляска детская ROAN MARITA",2211]
["S-125  Коляска детская ROAN MARITA ",2212]
["S-125  Коляска детская ROAN MARITA PRESTIGE ",2213]
["S-127 Коляска детская ROAN MARITA",2214]
["S-129 Коляска детская ROAN MARITA",2215]
["S-132 Коляска детская ROAN MARITA",2216]
["S-133 Коляска детская ROAN MARITA",2217]
["S-135 Коляска детская ROAN MARITA",2218]
["S-136  Коляска детская ROAN MARITA PRESTIGE ",2219]
["S-137 Коляска детская ROAN MARITA",2220]
["S-138  Коляска детская ROAN MARITA ",2221]
["S-140 Коляска детская ROAN MARITA",2222]
["S-142  Коляска детская ROAN MARITA",2223]
["S-143  Коляска детская ROAN MARITA ",2224]
["S-144  Коляска детская ROAN MARITA ",2225]
["S-146  Коляска детская ROAN MARITA ",2226]
["S-149  Коляска детская ROAN MARITA ",2227]
["S-170  Коляска детская ROAN MARITA ",2228]
["SC-05 SK Коляска детская ROAN MARITA",2229]
["SC-05 Коляска детская  ROAN MARITA",2230]
["SC-06 Коляска детская  ROAN MARITA",2231]
["SC-08 Коляска детская  ROAN MARITA",2232]
["SL-01 Коляска детская ROAN MARITA",2233]
["SL-02 Коляска детская  ROAN MARITA",2234]
["SL-07 Коляска детская  ROAN MARITA",2235]
["SL-08 Коляска детская  ROAN MARITA",2236]
["SL-12 Коляска детская  ROAN MARITA",2237]
["SL-14 Коляска детская  ROAN MARITA",2238]
["19-SK Коляска детская ROAN MARITA elegance",2239]
["S-111 Коляска детская ROAN MARITA elegance",2240]
["S-124 Коляска детская ROAN MARITA elegance",2241]
["Коляска \"Verona\"  col. 1 B",2242]
["Коляска \"Verona\"  col. 10 B",2243]
["Коляска \"Verona\"  col. 11 B",2244]
["Коляска \"Verona\"  col. 12 B",2245]
["Коляска \"Verona\"  col. 13 A",2246]
["Коляска \"Verona\"  col. 14 C",2247]
["Коляска \"Verona\"  col. 15 A",2248]
["Коляска \"Verona\"  col. 16 A",2249]
["Коляска \"Verona\"  col. 17 A",2250]
["Коляска \"Verona\"  col. 18 D",2251]
["Коляска \"Verona\"  col. 2 B",2252]
["Коляска \"Verona\"  col. 3 B",2253]
["Коляска \"Verona\"  col. 5 A",2254]
["Коляска \"Verona\"  col. 6 A",2255]
["Коляска \"Verona\"  col. 9 D",2256]
["Коляска Zekiwa Touring (BLUE 11)",2257]
["Коляска \"Венеция\" (2 в 1) col. 16",2258]
["Коляски Prampol Marti Maxi col.138",2259]
["Коляски Prampol Marti Maxi col.139",2260]
["Коляска ARIA Completo (MARTE)",2261]
["Коляска ARIA Completo (MOKKA)",2262]
["Коляска ARIA Completo (OCEANO)",2263]
["Коляска ARIA Completo (Zaffiro)",2264]
["Коляска ARIA Twin (MOKKA)",2265]
["Коляска book Completo(FLAMENCO)",2266]
["Коляска book Completo(GALAXY)",2267]
["Коляска book Completo(GEO)",2268]
["Коляска book Completo(MENTHA)",2269]
["Коляска book Completo(OCEANO)",2270]
["Коляска book Completo(STONE)",2271]
["Коляска  Young-auto (люлька) (DENIM BLACK)",2272]
["Коляска  Young-auto (люлька) (DENIM)",2273]
["Коляска  Young-auto (люлька) (IRIS)",2274]
["Коляска  Young-auto (люлька) (MIELE)",2275]
["Коляска  Young-auto (люлька) (Zaffiro)",2276]
["Коляска Culla-auto (люлька) (COLLEGE)",2277]
["Коляска Culla-auto (люлька) (MOKKA)",2278]
["Коляска Culla-auto (люлька) (PALOMA)",2279]
["Коляска Culla-auto (люлька) (SCOZIA)",2280]
["Шасси Classico Chrome (NAVY)",2281]
["Шасси Classico Velo (BLACK/GRAY)",2282]
["Коляска  GT3 Completo (BEAUTY)",2283]
["Коляска  GT3 Completo (COLLEGE)",2284]
["Коляска  GT3 Completo (Denim)",2285]
["Коляска  GT3 Completo (MENTHA)",2286]
["Коляска  GT3 Completo (MIELE)",2287]
["Коляска  Navetta XL (люлька) ( (IRIS))",2288]
["Коляска  Navetta XL (люлька) ( (MOKKA)",2289]
["Коляска  Navetta XL (люлька) ( (NEWMOON)",2290]
["Коляска  Navetta XL (люлька) (MYRTO)",2291]
["Коляска  Navetta XL (люлька) (POIS GREY)",2292]
["Бампер Pliko Mini",2293]
["Коляска Plico Mini (Aloe)",2294]
["Коляска Plico Mini (Diamante)",2295]
["Коляска Plico Mini (Sky)",2296]
["Чехол для ног Boot Pliko Mini",2297]
["Коляска Plico P3 Compact (FANTASY NERO)",2298]
["Коляска Plico P3 Compact (JAVA)",2299]
["Коляска Plico P3 Compact (Scozia)",2300]
["Коляска Plico P3 Completo (BLACK STEP)",2301]
["Коляска Plico Switch Compact (Regata)",2302]
["Коляска Plico Switch Easy Drive (GERANIUM)",2303]
["Коляска Plico Switch Easy Drive (JAVA)",2304]
["Коляска Plico Switch Easy Drive (Newmoon)",2305]
["Сидение Switch Seat Completo (COLLEGE)",2306]
["Сидение Switch Seat Completo (DENIM BLACK)",2307]
["Сидение Switch Seat Completo (DENIM)",2308]
["Сидение Switch Seat Completo (FLAMENCO)",2309]
["Сидение Switch Seat Completo (JAVA)",2310]
["Сидение Switch Seat Completo (MIELE)",2311]
["Сидение Switch Seat Completo (MOKKA)",2312]
["Сидение Switch Seat Completo (SCOZIA)",2313]
["Сидение Switch Seat Completo (STONE)",2314]
["Сидение Switch Seat Completo (ZAFFIRO)",2315]
["Шасси Book(Black/Silver)",2316]
["Шасси Easy Drive (BLACK/GRAY)",2317]
["Шасси Easy Drive(Black/Gray)",2318]
["Шасси Easy Drive(Black/Silver)",2319]
["Шасси Easy Drive(Black/White)",2320]
["Шасси FOUR Drive(Black/Gray)",2321]
["Комплект Set Modular (IVORY)",2322]
["Комплект Set Modular (MIELE)",2323]
["Коляска Si Completo (MARTE)",2324]
["Коляска Si Completo (MOKKA)",2325]
["Коляска Si Completo (OCEANO)",2326]
["Дождевик Cover all (UNO)",2327]
["Коляска Uno (DENIM BLACK)",2328]
["Коляска Uno (MIELE)",2329]
["Коляска Uno (MOKKA)",2330]
["Автокресло Viaggio 1 DUO-FIX ASIP (BLACK)",2331]
["Автокресло Viaggio 1 DUO-FIX ASIP (CACAO)",2332]
["Автокресло Viaggio 1 DUO-FIX ASIP (DENIM)",2333]
["Автокресло Viaggio 1 DUO-FIX ASIP (RED)",2334]
["Автокресло Viaggio 1 DUO-FIX ASIP (SAND)",2335]
["Автокресло Viaggio 2/3 SUPEREFIX (CACAO)",2336]
["Автокресло Viaggio 2/3 SUPEREFIX (DENIM)",2337]
["Автокресло Viaggio 2/3 SUPEREFIX (RED)",2338]
["Автокресло Viaggio 2/3 SUPEREFIX (SAND)",2339]
["Автокресло Primo Viaggio TRI-FIX (BEAUTY)",2340]
["Автокресло Primo Viaggio TRI-FIX (MOKKA)",2341]
["Автокресло Primo Viaggio TRI-FIX ASIP (IRIS)",2342]
["Автокресло Viaggio 0+1 Switchable (BLACK)",2343]
["Автокресло Viaggio 0+1 Switchable (CACAO)",2344]
["Автокресло Viaggio 0+1 Switchable (RED)",2345]
["Автокресло Viaggio 0+1 Switchable (SAND)",2346]
["Бампер-поднос Book Clild Tray",2347]
["Дождевик Cover all (Culla,Young,Navetta)",2348]
["Дождевик Parapioggia (Aria)",2349]
["Дождевик Parapioggia (Pliko P3, Pliko Switch, Pliko Mini, Si, GT3)",2350]
["Москитная сетка для прогулочных колясок",2351]
["Подставка для автокресла ISOFIX BASE",2352]
["Сумка дорожная Travel Bag",2353]
["Cумка Borsa Mamma (BEAUTY)",2354]
["Cумка Borsa Mamma (COLLEGE)",2355]
["Cумка Borsa Mamma (DENIM BLACK)",2356]
["Cумка Borsa Mamma (DENIM)",2357]
["Cумка Borsa Mamma (IRIS)",2358]
["Cумка Borsa Mamma (JAVA)",2359]
["Cумка Borsa Mamma (MIELE)",2360]
["Cумка Borsa Mamma (MIRTO)",2361]
["Cумка Borsa Mamma (MOKKA)",2362]
["Cумка Borsa Mamma (NEWMOON)",2363]
["Cумка Borsa Mamma (POIS GREY)",2364]
["Cумка Borsa Mamma (ZAFFIRO)",2365]
["Универсальный вкладыш Baby Cushion",2366]
["Автокресло Viaggio1 Duo-Fix Martinelli (BLUE NOTE)",2367]
["Дождевик KWAY NAVICELLA Martinelli (BLU NOTTE)",2368]
["Дождевик KWAY NAVICELLA Martinelli (CARAMEL)",2369]
["Коляска \"Navicella Martinelli \" (auto) (люлька) (BLU NOTTE)",2370]
["Коляска \"Switch Easy Drive Martinelli \" (CARAMEL)",2371]
["Коляска \"Switch Easy Drive Martinelli Blue Notte",2372]
["Коляска mini Martinelli (BLU NOTTE)",2373]
["Коляска mini Martinelli (CARAMEL)",2374]
["Комплект летний KIT ESTATE Martinelli (BLUE NOTE)",2375]
["Комплект летний KIT ESTATE Martinelli (CARAMEL)",2376]
["Стульчик детский Prima Pappa Best Martinelli (BLU NOTTE)",2377]
["Шасси Classico Chrome  Martinelli Navy",2378]
["Стульчик детский Prima Pappa Best (BORDEAUX)",2379]
["Стульчик детский Prima Pappa Best (CACAO)",2380]
["Стульчик детский Prima Pappa Best (PALOMA)",2381]
["Стульчик детский Prima Pappa Diner (BORDEAUX)",2382]
["Стульчик детский Prima Pappa Diner (CACAO)",2383]
["Стульчик детский Prima Pappa Diner (HAPPY FARM)",2384]
["Стульчик детский Prima Pappa Diner (PALOMA)",2385]
["Стульчик детский Prima Pappa Diner (SAVANA BEIGE)",2386]
["Стульчик детский Prima Pappa Diner (SAVANA CACAO)",2387]
["Стульчик детский Prima Pappa Diner (SAVANA ROSA)",2388]
["Стульчик детский Prima Pappa Diner (THEO ARANCIO)",2389]
["Стульчик детский Prima Pappa Diner (THEO GIALLO)",2390]
["Стульчик \"Prima Pappa Zero-3 (ARANCIA)",2391]
["Стульчик \"Prima Pappa Zero-3 (GIRAFFA GLICINE)",2392]
["Стульчик \"Prima Pappa Zero-3 (GIRAFFA VERDE)",2393]
["Стульчик \"Prima Pappa Zero-3 (licorice)",2394]
["Стульчик \"Prima Pappa Zero-3 (MELA)",2395]
["Стульчик \"Prima Pappa Zero-3 (PALOMA)",2396]
["Стульчик \"Prima Pappa Zero-3 (PETROLIO)",2397]
["Стульчик детский \"Tatamia\" (CACAO)",2398]
["Стульчик детский \"Tatamia\" (LATTE)",2399]
["Стульчик детский \"Tatamia\" (PALOMA)",2400]
["Чехол Kit options TATAMIA (AZZURRO)",2401]
["Чехол Kit options TATAMIA (ROSA)",2402]
["Чехол Kit options TATAMIA (VERDE)",2403]
["Стульчик детский \"Siesta\" (ARANCIO)",2404]
["Стульчик детский \"Siesta\" (CACAO)",2405]
["Стульчик детский \"Siesta\" (MELA)",2406]
["Стульчик детский \"Siesta\" (NOCE)",2407]
["Ходунки \"Walk'n Play Jumper\" (Sav. Azzurro)",2408]
["Ходунки \"Walk'n Play Jumper\" (THEO ARANCIO)",2409]
["Ходунки \"Walk'n Play Jumper\" (THEO GIALLO)",2410]
["Шезлонг Mia Baby Seat (Savana Azzurro) ",2411]
["Шезлонг Mia Baby Seat (Savana Beige) ",2412]
["Шезлонг Mia Baby Seat (Savana Rosa) ",2413]
["AY95E0BTL Рюкзак-кенгуру Front ",2414]
["AY95E0DAL Рюкзак-кенгуру Front ",2415]
["AY95E0MAR Рюкзак-кенгуру Front ",2416]
["AY95E0TLP Рюкзак-кенгуру Front ",2417]
["KB05C1MAR Коляска Classica на шасси Balestrino CR./BLU (AB05COMAR+AE05A1000)",2418]
["KB05C3MAR Коляска Classica на шасси Balestrino Chrome./BLU (AB05COMAR+AE05E1000)",2419]
["KB05E1BTL Коляска Classica на шасси Balestrino Chrome./BLU (AB05EOBTL+AE05E1000)",2420]
["KB05E1MAR Коляска Classica на шасси Balestrino CR./BLU (AB05COMAR+AE05E1000)",2421]
["KB05E1NAP Коляска Classica на шасси Balestrino Chrome./BLU (AB05EONAP+AE05E1000)",2422]
["KB05E3MAR Коляска Classica на шасси Balestrino CR./IVORY (AB05EOMAR+AE05E3100)",2423]
["KB05E3NAP Коляска Classica на шасси Balestrino CR./IVORY (AB05EONAP+AE05E3100)",2424]
["AG80E0BTL Прогулочная коляска Espresso",2425]
["AG80E0LAM Прогулочная коляска Espresso",2426]
["AG80E0MAR Прогулочная коляска Espresso",2427]
["AG80E0TLP Прогулочная коляска Espresso",2428]
["KA20D3LQR Коляска 3 в 1 OTUTTO на шасси frame Perla (AA20D6LQR+AE20D3100)",2429]
["KA20E3BTL Коляска Otutto на шасси Frame White (AA20E6BTL+AE20D3100)",2430]
["KA20E3DAL Коляска Otutto на шасси Frame White (AA20E6DAL+AE20D3100)",2431]
["KA20E3MAR Коляска Otutto на шасси Frame White (AA20E6MAR+AE20D3100)",2432]
["KA20E3SRN Коляска Otutto на шасси Frame White (AA20E6SRN+AE20D3100)",2433]
["KA20E6BTL Коляска Otutto на шасси Frame Slate (AA20E6BTL+AE20D6100)",2434]
["KA20E6DAL Коляска Otutto на шасси Frame Slate (AA20E6DAL+AE20D6100)",2435]
["KA20E6MAR Коляска Otutto на шасси Frame Slate (AA20E6MAR+AE20D6100)",2436]
["KA20E6SRN Коляска Otutto на шасси Frame Slate (AA20E6SRN+AE20D6100)",2437]
[" KB15E1LAM Коляска Sofia Sport на Comfort Chrome/Blue(AB15E6LAM/S+AE10E1000/B)",2438]
[" KB15E1TLP Коляска Sofia Sport на Comfort Chrome/Blue(AB15E6TLP/S+AE10E1000/B)",2439]
[" KB15E1TLP Коляска Sofia Sport на Comfort Chrome/Slate(AB15E6TLP/S+AE10E6100/B)",2440]
[" KB15E6LAM Коляска Sofia Sport на Comfort Chrome/Slate(AB15E6LAM/S",2441]
[" KB15E6TLP Коляска Sofia Sport на Comfort Chrome/Slate(AB15E6TLP/S",2442]
[" KB15E7TLP Коляска Sofia Sport на Ergobike Slate(AB15E6TLP/S+AE15E6100)",2443]
["KB15E1BTL Коляска Sofia Elegance на Comfort Chrome/Blue(AB15E6BTL+AE10E1000/B)",2444]
["KB15E6MAR Коляска Sofia Elegance на Comfort Chrome/Slate(AB15E6MAR+AE10E6100/B)",2445]
[" AX35E0TLP Сумка Trilogy bag",2446]
["Коляска Trilogy на шасси Trilogy Black (AA35E0LAM+AE35E0000) 3 в 1",2447]
["Коляска Trilogy на шасси Trilogy Black (AA35E0TLP+AE35E0000) 3 в 1",2448]
["Коляска Trilogy на шасси Trilogy Black (AA35E6BTL+AE35E0000) 3 в 1",2449]
["Коляска Trilogy на шасси Trilogy Black (AA35E6MAR+AE35E0000) 3 в 1",2450]
["Коляска Trilogy на шасси Trilogy Black (AA35E6VNE+AE35E0000) 3 в 1",2451]
["Коляска Trilogy на шасси Trilogy Slate (AA35E0LAM+AE35E6100) 3 в 1",2452]
["Коляска Trilogy на шасси Trilogy Slate (AA35E0TLP+AE35E6100) 3 в 1",2453]
["Коляска Trilogy на шасси Trilogy Slate (AA35E6MAR+AE35E6100) 3 в 1",2454]
["Коляска Trilogy на шасси Trilogy Slate (AA35E6VNE+AE35E6100) 3 в 1",2455]
["Коляска Trilogy на шасси Trilogy White (AA35E6MAR+AE35E3200) 3 в 1",2456]
["Коляска Trilogy на шасси Trilogy White (AA35E6VNE+AE35E3200) 3 в 1",2457]
["AG35E0LAM Прогулочная коляска Trilogy(на шасси Black)",2458]
["AG35E0TLP Прогулочная коляска Trilogy( на шасси Black)",2459]
["AG35E3MAR Прогулочная коляска Trilogy(на шасси White)",2460]
["AG35E3VNE Прогулочная коляска Trilogy(на шасси White) ",2461]
["AG35E6BTL Прогулочная коляска Trilogy(на шасси Slate-gray)",2462]
["AG35E6CAF Прогулочная коляска Trilogy(на шасси Slate-gray)",2463]
["AG35E6MAR Прогулочная коляска Trilogy(на шасси Slate-gray)",2464]
["AG35E6VNE Прогулочная коляска Trilogy(на шасси Slate-gray)",2465]
["AG82E0VNE Прогулочная коляска TRIP",2466]
["KB10C1MAR Коляска Vittoria на шасси Comfort Chrome Blu (AB10C1MAR+AE10C1000)",2467]
["KB10E1BTL Коляска Vittoria на шасси Comfort Chrome Blu (AB10E6BTL+AE10E1000)",2468]
["KB10E1MAR Коляска Vittoria на шасси Comfort Chrome/Blu (AB10E1MAR+AE10E1000)",2469]
["KB10E5BTL Коляска Vittoria на шасси Ergobike/Slate (AB10E6BTL+AE15E6100)",2470]
["KB10E5MAR Коляска Vittoria на шасси Ergobike/Slate (AB10E1MAR+AE15E6100)",2471]
["KB10E6MAR Коляска Vittoria на шасси Comfort Chrome/Slate (AB10E1MAR+AE10E6100)",2472]
[" AG45E6BLN_AY90E6DAL Прогулочная коляска Zippi Evo + подвесной стульчик ",2473]
[" AG45E6BTL_AY90E6BTL Прогулочная коляска Zippi Evo + подвесной стульчик ",2474]
[" AG45E6MAR_AY90E6BTL Прогулочная коляска Zippi Evo + подвесной стульчик ",2475]
[" AG45E6MAR_AY90E6TLP Прогулочная коляска Zippi Evo + подвесной стульчик ",2476]
[" AG45E6TLP_ AY90E6TLP Прогулочная коляска Zippi Evo + подвесной стульчик ",2477]
["KA45E6BTL Коляска System Zippy на шасси Zippy Evo Slate (AA45E6BTL+AE45E6100)",2478]
["KA45E6DAL Коляска System Zippy на шасси Zippy Evo Slate (AA45E6DAL+AE45E6100)",2479]
["KA45E6TLP Коляска System Zippy на шасси Zippy Evo Slate (AA45E6TLP+AE45E6100)",2480]
["1903RE7 Шезлонг LOFT",2481]
["AG45D6MRT Прогулочная коляска Zippy FREE",2482]
["AY90D6001 Black Denim Подвесной стульчик  FAST",2483]
["AY90D6003 Dark Grey Подвесной стульчик  FAST",2484]
["AY90D6004 Silver Blue Подвесной стульчик  FAST",2485]
["AY90D6005 Grey Blue Подвесной стульчик  FAST",2486]
["KA45D6EUC Коляска3 в1 ZippyFreeSystem на шассиframe Ardesia(AA45D6EUC+AE45D6100)",2487]
["KA45D9LQR Коляска3 в1 ZippyFreeSystem на шассиframe Titanio(AA45D6QR+AE45D9000)",2488]
["AO95EV943 Летний чехол для автокресла Marco Polo (подарок)",2489]
["AV00D6100 База для автокресла SHP Ardesia",2490]
["AV02D6100 База для автокресла ISOFIX Ardesia",2491]
["AV40D6IBS Автокресло Huggy MULTIFIX",2492]
["AV40E0LAM Автокресло Huggy MULTIFIX",2493]
["AV40E0TLP Автокресло Huggy MULTIFIX",2494]
["AV40E6DAL Автокресло Huggy MULTIFIX",2495]
["AV40E6VNE Автокресло Huggy MULTIFIX",2496]
["AV90E0BLU  Автокресло Moovy Группа 0-1(2 шт.)",2497]
["AV90E0RED  Автокресло Moovy Группа 0-1(2 шт.)",2498]
["AV91E0BLK Автокресло Magellano Группа 0-1",2499]
["AV91E0BLU Автокресло Magellano Группа 0-1",2500]
["AV91E0RED Автокресло Magellano Группа 0-1",2501]
["AV94D0BLK Автокресло Marco Polo Группа 0-1(1 шт.)",2502]
["AV94D0BLU Автокресло Marco Polo Группа 0-1(1 шт.)",2503]
["AV94D0GRY Автокресло Marco Polo Группа 0-1(1 шт.)",2504]
["AV94D0RED Автокресло Marco Polo Группа 0-1(1 шт.)",2505]
["AV94E0BLK Автокресло Marco Polo Группа 0-1(1 шт.)",2506]
["AV94E0BLU Автокресло Marco Polo Группа 0-1(1 шт.)",2507]
["AV94E0GRY Автокресло Marco Polo Группа 0-1(1 шт.)",2508]
["AV94E0RED Автокресло Marco Polo Группа 0-1(1 шт.)",2509]
["AV96E0BLK Автокресло Prime Miglia Группа 1-2-3 (2 шт.)",2510]
["AV96E0BLU Автокресло Prime Miglia Группа 1-2-3 (2 шт.)",2511]
["AV96E0GRY Автокресло Prime Miglia Группа 1-2-3 (2 шт.)",2512]
["AV96E0RED Автокресло Prime Miglia Группа 1-2-3 (2 шт.)",2513]
["AV97D0BLU Автокресло Prime Miglia Группа 1-2-3-Fix (2 шт.)",2514]
["AV97E0BLK Автокресло Prime Miglia Группа 1-2-3-Fix (2 шт.)",2515]
["AV97E0RED Автокресло Prime Miglia Группа 1-2-3-Fix (2 шт.)",2516]
["A096AB050 Дождевик для коляски Classica",2517]
["A096AC030 Дождевик для коляски Magnum/прогул.блока Extra Combi",2518]
["A097AZ920 Антимоскитная сетка для шезлонга",2519]
["A099CB006 Подставка для люльки Stand Up",2520]
["AZ94C3GRA Манеж-кровать Lodge",2521]
["Коляска детская, 3-х колесная, модульная система: люлька, прогулочный блок и авто кресло- переноска,",2522]
["79218.46 Автом.сиденье Eletta гр. 0+/1 Pegaso",2523]
["79218.70 Автом.сиденье Eletta гр. 0+/1 JUNIPER",2524]
["79218.71 Автом.сиденье Eletta гр. 0+/1 PAPRIKA",2525]
["60855.43 Автом.сиденье Key гр. 2-3 Romantic",2526]
["60855.46 Автом.сиденье Key гр. 2-3 Pegaso",2527]
["79079,70 Автом.сиденье NEPTUNE Группа 1/2/3 RED",2528]
["79079.43 Автом.сиденье NEPTUNE Группа 1/2/3  Romantic",2529]
["79079.47 Автом.сиденье NEPTUNE Группа 1/2/3 GREY",2530]
["79079.80 Автом.сиденье NEPTUNE Группа 1/2/3 BLUE",2531]
["79079.97 Автом.сиденье NEPTUNE Группа 1/2/3 Fuego",2532]
["79244.47 Автом. сиденье OASYS 2-3 GREY",2533]
["79244.70 Автом. сиденье OASYS 2-3 RED",2534]
["79244.80 Автом. сиденье OASYS 2-3 BLUE",2535]
["79245.70 Автом. сиденье OASYS 2-3 FIXPLUS RED",2536]
["71505.45 Автом.сиденье Proxima гр.0+/ 1 Black Label",2537]
["60893 590 000 Автом.сиденье QUASAR PLUS Гр. 2/3 Astral",2538]
["60893 970 000 Автом.сиденье QUASAR PLUS Гр. 2/3 Fuego",2539]
["60658 110 000 Автом.сиденье SYNTHESIS XT-Plus Группа 0+ GARNET",2540]
["60658 130 000 Автом.сиденье SYNTHESIS XT-Plus Группа 0+ Sapphire",2541]
["60658 800 000 Автом.сиденье SYNTHESIS XT-Plus Группа 0+ BLUE",2542]
["Гигиенический чехол для автокресла Synthesis X-Plus  (в подарок)",2543]
["79240 700 000 Автом.сиденье XPACE JUNIPER",2544]
["79240 710 000 Автом.сиденье XPACE PAPRIKA",2545]
["79240 750 000 Автом.сиденье XPACE CHOCO CULT",2546]
["79241 710 000 Автом.сиденье XPACE ISOFIX PAPRICA",2547]
["79241 730 000 Автом.сиденье XPACE ISOFIX LIQUORICE",2548]
["04 061337 130 000 Коляска Ct 0.6 Light stroller Sapphire",2549]
["04 061337 150 000 Коляска Ct 0.6 Light stroller Amethist",2550]
["04 061337 160 000  Коляска Ct 0.6 Light stroller Jade",2551]
["04 061337 500 000 Коляска Ct 0.6 Light stroller amber",2552]
["04 061337 990 000 Коляска Ct 0.6 Light stroller Jasper",2553]
["04 079310 110 000 Коляска Echo  stroller Garnet",2554]
["04 060888 110 000 Коляска Lite Way Top stroller Garnet",2555]
["04 060888 130 000 Коляска Lite Way Top stroller Sapphire",2556]
["04 060888 250 000 Коляска Lite Way Top stroller Canyon",2557]
["04 060888 270 000 Коляска Lite Way Top stroller Surf",2558]
["04 060888 330 000 Коляска Lite Way Top stroller Glamour",2559]
["05 060888 970 000 Коляска Lite Way Top stroller Fuego",2560]
["07 060888 400 000 Коляска Lite Way Top stroller Shampaigne",2561]
["07 060888 410 000 Коляска Lite Way Top stroller Black Night",2562]
["07 060888 420 000 Коляска Lite Way Top stroller Marine",2563]
["07 060888 640 000 Коляска Lite Way Top stroller Red Passion",2564]
["04 061613 050 000 Коляска Muitiwai Complete stroller MOONSTONE",2565]
["04 061613 110 000 Коляска Muitiwai Complete stroller Garnet",2566]
["04 061613 130 000 Коляска Muitiwai Complete stroller Sapphire",2567]
["61613.97 Коляска Muitiwai Complete stroller Fuego",2568]
["04 079280 700 000 Коляска POLAR Red",2569]
["06 079280 950 000 Коляска POLAR Black",2570]
["04 079138 080 000 Коляска Simplicity Top stroller Syria",2571]
["04 079138 120 000 Коляска Simplicity Top stroller Klabber",2572]
["04 079138 140 000 Коляска Simplicity Top stroller Morgana",2573]
["04 079138 490 000 Коляска Simplicity Top stroller Galaxy",2574]
["07 079255 930 000 Коляска Snappy stroller RED WAVE",2575]
["07 079255 980 000 Коляска Snappy stroller ORANGE WAVE",2576]
["07 079255 990 000 Коляска Snappy stroller BLUE WAVE",2577]
["Коляска  Trio Black 79124.45 !!! НОВИНКА !!!",2578]
["04 061217 110 000 Коляска прогулочная Ct 0.6 Garnet",2579]
["04 061217 130 000 Коляска прогулочная Ct 0.6 Sapphire",2580]
["04 061217 150 000 Коляска прогулочная Ct 0.6 Amethyst",2581]
["04 061217 160 000 Коляска прогулочная Ct 0.6 Jade",2582]
["04 061217 990 000 Коляска прогулочная Ct 0.6  Jasper",2583]
["04 079141 110 000 Коляска Трио Enjoy Fun Garnet",2584]
["06 079141 800 000 Коляска Трио Enjoy Fun Blue",2585]
["79150.32 Коляска  Enjoy Fun stroller",2586]
["Коляска TRIO I-MOVE TOP BLUE",2587]
["СИСТЕМА ТРИО CHICCO I-MOVE /КРАСНЫЙ ВЕРХ",2588]
["СИСТЕМА ТРИО CHICCO I-MOVE /ЧЕРНЫЙ ВЕРХ",2589]
["06 079281 950 000 Люлька-переноска Chicco Polar Black",2590]
["04 079011 700 000 Креслице-качалка Chicco I-Feel Red",2591]
["05 079011 170 000 Креслице-качалка Chicco I-Feel Pink",2592]
["79011.48 Креслице-качалка Chicco I-Feel Light blue",2593]
["79011.49 Креслице-качалка Chicco I-Feel Brown",2594]
["79011.51 Креслице-качалка Chicco I-Feel Green",2595]
["07 079018 350 000 Креслице-качалка Chicco JOLIE PURPLE",2596]
["07 079018 950 000 Креслице-качалка Chicco JOLIE BLUE Wave",2597]
["04 079097 380 000 Креслице-качалка Chicco Mia Bouncer Mr Owl",2598]
["04 079097 390 000 Креслице-качалка Chicco Mia Bouncer Mrs Owl",2599]
["04 079097 480 000 Креслице-качалка Chicco Mia Bouncer Water Lily",2600]
["79027.17 Кровать-манеж  Easy Sleep (Pink)",2601]
["79027.40 Кровать-манеж  Easy Sleep (Yellow)",2602]
["79027.48 Кровать-манеж  Easy Sleep (Light Blue)",2603]
["79027.51 Кровать-манеж  Easy Sleep (Green)",2604]
["00 061689 800 000 Кровать-манеж  Open Sea Square Playpen (Sea Dreams) С",2605]
["04 069495 010 000 Манеж  Lullaby Travel Cot",2606]
["04 069495 390 000 Манеж  Lullaby Travel Cot  Mrs Owl",2607]
["04 061689 170 000 Манеж Open Country Square Playpen",2608]
[" 06079074260000 Стульчик высокий New Polly HAPPY LAND",2609]
[" 06079074330000 Стульчик высокий New Polly WOOD FRIENDS",2610]
[" 06079074380000 Стульчик высокий New Polly TWEET",2611]
[" 06079074390000 Стульчик высокий New Polly SEA WORLD",2612]
["04 063803 380 000 Стульчик высокий  POLLY Mr Owl",2613]
["04 063803 390 000 Стульчик высокий  POLLY Mrs Owl",2614]
["04 063803 480 000 Стульчик высокий  POLLY WATER LILY",2615]
["05 063803 660 000 Стульчик высокий  POLLY Safari",2616]
["07 063803 230 000 Стульчик высокий  POLLY Zanzibar",2617]
["Ремни для стульчика Polly (серые)",2618]
["Съемный настил для стульчика Double Phase Safari",2619]
["00061691800 000 Стульчик POLLY MAGIC SEA DREAMS",2620]
["04 061691 640 000 Стульчик POLLY  MAGIC Happy Cherry",2621]
["07 061691 250 000 Стульчик POLLY  MAGIC DELICACY",2622]
["07 061691 270 000 Стульчик POLLY  MAGIC TOBACCO",2623]
["07 079090 060 000 Стульчик POLLY  MAGIC ROSE 2013",2624]
["07 079090 190 000 Стульчик POLLY  MAGIC PAPYRUS 2013",2625]
["07 079090 270 000 Стульчик POLLY  MAGIC TOBACCO 2013",2626]
["07 079090 300 000 Стульчик POLLY  MAGIC SCARLET 2013",2627]
["04061699.10 Стульчик подвесной Quick Adjust table seat  ",2628]
["04061699.69 Стульчик подвесной Quick Adjust table seat  ",2629]
["04061699.80 Стульчик подвесной Quick Adjust table seat  ",2630]
["05061699.49 Стульчик подвесной Quick Adjust table seat  ",2631]
["Сумка -кенгуру  YOU&ME PHYSIO-COMFORT Mars 64698.79",2632]
["Сумка -кенгуру  YOU&ME PHYSIO-COMFORT Venus 64698.80",2633]
["06079401950 000 Сумка для перноски ребенка GO NEW Black",2634]
["067590 500 000 Сумка -кенгуру GO Amber",2635]
["07 079401 300 000        Сумка -кенгуру GO NEW SCARLET",2636]
["07 079401 870 000 Сумка -кенгуру GO NEW Hearth",2637]
["07 079401 930 000 Сумка -кенгуру GO NEW Red Wave",2638]
["07 079401 940 000 Сумка -кенгуру GO NEW Fuchia Wave",2639]
["07 079401 990 000 Сумка -кенгуру GO NEW Blue Wave",2640]
["Сумка -кенгуру GO NEW Black 79401.95",2641]
["04 079402 080 000 Сумка -кенгуру SOFT & DREAM NEW Syria",2642]
["04 079402 120 000 Сумка -кенгуру SOFT & DREAM NEW Klabber",2643]
["04 079402 600 000 Сумка -кенгуру SOFT & DREAM NEW ROSE",2644]
["06 07940221 000 Сумка -кенгуру SOFT & DREAM NEW Graphite",2645]
["07 079402 090 000 Сумка -кенгуру SOFT & DREAM NEW DEEP BLUE",2646]
["07 079402 190 000 Сумка -кенгуру SOFT & DREAM NEW FIRE",2647]
["07 079402 650 000 Сумка -кенгуру SOFT & DREAM NEW Rose Kiss",2648]
["Сумка -кенгуру You & Me Miss Pink  64698.81",2649]
["Сумка -кенгуру You & Me Mr Blue  64698.80",2650]
["04 067648 480 000 Ходунки DJ Water Lily",2651]
["04 067648 520 000 Ходунки DJ Greeny",2652]
["04 079028 470 000 Ходунки BAND DINOFOOD",2653]
["04 079028 480 000 Ходунки BAND WATER LILY",2654]
["04 079028 520 000 Ходунки BAND GREENY",2655]
["07 079028 230 000 Ходунки BAND ZANZIBAR",2656]
["79029.380  Ходунки Space",2657]
["92552  Коляска Aprica Karoon, SX",2658]
["Коляска Aprica Mgical Air SX92572",2659]
["Ванна детская складная Baby Care PM3310 (6шт/уп)",2660]
["Горка для ванной пластиковая Baby Care JBR (Розовый)",2661]
["Горка для ванной пластиковая Baby Care JBR (Синий)",2662]
["Горшок анатомический детский Baby Care JBB-A (белый)",2663]
["Горшок анатомический детский Baby Care JBB-A (желтый)",2664]
["Горшок анатомический детский Baby Care JBB-A (зеленый)",2665]
["Горшок анатомический детский Baby Care JBB-A (красный)",2666]
["Горшок анатомический детский Baby Care JBB-A (розовый)",2667]
["Горшок анатомический детский Baby Care JBB-A (синий)",2668]
["Горшок музыкальный детский Baby Care JBB-B (Белый)",2669]
["Горшок музыкальный детский Baby Care JBB-B (Желтый)",2670]
["Горшок музыкальный детский Baby Care JBB-B (Розовый)",2671]
["Горшок музыкальный детский Baby Care JBB-С (Белый)",2672]
["Коляска Baby Care City Style (Beige)",2673]
["Коляска Baby Care City Style (Blue)",2674]
["Коляска Baby Care City Style (Khakki)",2675]
["Коляска Baby Care City Style (Red)",2676]
["Коляска Baby Care City Style (Violet)",2677]
["Коляска Baby Care Jogger Cruze (Blue)",2678]
["Коляска Baby Care Jogger Cruze (Red)",2679]
["Коляска Baby Care Jogger Cruze (Violet)",2680]
["Коляска Baby Care Polo (Dark Blue)",2681]
["Коляска Baby Polo (Dark Grey/Light Grey)",2682]
["Коляска Baby Polo (Dark Grey/Red)",2683]
["Коляска Baby Polo (Dark Red)",2684]
["Коляска Baby Polo (Light Blue)",2685]
["Коляска Baby Polo (Light Orange)",2686]
["Коляска Baby Polo (Light Terrakote)",2687]